Workbook

Sheet Användarguide
Q1: v1.1
R4: Klicka här för att komma till STEMFS 2025:2
R14: Klicka här för att komma till STEMFS 2025:2
R68: Klicka här för att komma till Kommissionens genomför(…) 2022/996
R70: Klicka här för att komma till STEMFS 2025:2
R81: Klicka här för att komma till Kommissionens genomför(…) 2022/996
R95: Klicka här för att komma till SeaRates

Sheet Indata och beräkning
E1: ?
D2: Grunddata | E2: =IF(E4="Fast","Biobränsle",IF(OR(E4="",E6=""),"",IF(AND(E4="Flytande",E6="Motordrift"),"Biodrivmedel","Flytande biobränsle"))) -> 
D4: Bränsletyp
D5: Bränsle
D6: Användningsområde
D7: Hållbar mängd (välj enhet i drop-down på nästa rad) | I7: Enheter: flytande bränslen = kg eller m3 vid 15 °C, fasta bränslen = MWh (framräknat på det sätt som framgår av kontrollsystemet). När den hållbara mängden utgör en delmängd i ett bränsle ska andelen hållbart bränsle beräknas utifrån de ingående komponenternas energiinnehåll.
D8: Enhet för värdet på hållbar mängd
D9: ="Värmevärde [" & Enhet_värmevärde & "]" -> Värmevärde [] | E9: =IF(OR(E5="Övriga flytande",E5="Övriga fasta"), E10, IF(Enhet_värmevärde= "MJ/l vid 15° C", _xlfn.XLOOKUP(E5, Data!A52:A62, Data!E52:E62), _xlfn.XLOOKUP(E5,Data!A52:A67, Data!F52:F67))) ->  | I9: Enheter: flytande bränslen = MJ/l vid 15° C eller MJ/kg.
D10: ="Värmevärde (eget värde), [" & Enhet_värmevärde_eget &"]" -> Värmevärde (eget värde), [MJ/kg] | I10: Enheter: flytande bränslen = MJ/l vid 15° C eller MJ/kg.
D11: Densitet (eget värde), [kg/m3] | I11: Anges för beräkning av lagring då bränslet tillhör kategorin "övriga flytande" och värmevärdet anges i MJ/kg. Anges även för beräkning av Sjö-och Land-transport då bränslet tillhör någon av katgorierna "Övriga flytande" eller "Övriga fasta".
D12: Metod för att beräkna växthusgasutsläppet | I12: Förklaring av de olika alternativen finns i fliken "Användarguide" rubriken "Grunddata".
D13: Produktionskedja | I13: Typ av produktionskedja enligt bilaga 2–8 i STEMFS 2025:2.
D16: Beräkningens omfattning och metod
C18: Term | D18: Omfattning och metod | E18: Värde [g CO2eq/MJ] | I18: Valen i tabellen påverkar vilka delar av beräkningen som inkluderas. Mer information i fliken "Användarguide", rubriken "Grunddata".
C19: Leverantörens tidigare utsläpp
C20: Utvinning eller odling av råvaror (eec)
C21: Bearbetning (ep)
C22: Transport och distribution (etd)
C23: Användning av bränslet (eu) | I23: Avser metan och lustgasutsläpp från förbränningen av bränslet. Vid valet "Värde från Genomförandeförordningen" blir fasta bränslen = 0,4 g CO2eq/MJ, flytande biobränslen = 0,14 g CO2eq/MJ (Kommissionens genomförandeförordning (EU) 2022/996 av den 14 juni 2022 om regler för att verifiera hållbarhet och kriterier för minskade växthusgasutsläpp och kriterier för låg risk för indirekt ändring av markanvändning).
C24: Växthusgasutsläpp från energiomvandling (EC) | D24: Omfattas | E24: =IF(D24="Omfattas",IF( E103="","Fyll i fliken EC-beräkning!",IF(OR('EC-beräkning'!G7<>"",'EC-beräkning'!G8<>"",'EC-beräkning'!G9<>""),"Se över indata på fliken EC-beräkning","")),"") -> Fyll i fliken EC-beräkning! | I24: EC-beräkningen ligger som en separat flik.
C26: Term | D26: Omfattning och metod | E26: Värde [g CO2eq/MJ]
C27: Förändringar i kollager (el) | I27: Mer information om förändrad markanvändning finns i STEMFS 2025:2.
C28: Kollager förbättrade jordbruksmetoder (esca)
C29: Avskiljning och lagring av CO2 (eccs) | I29: Avser endast utsläpp från produktionen av bränslet, och inte infångande av CO2 från förbränning av bränslet. Fyll i hur många gram CO2eq som har avskilts.
C30: Avskiljning och ersättning av CO2 (eccr)
D33: Utvinning eller odling av råvaror (eec)
C35: Område | E35: Värde [g CO2eq/MJ] | I35: För detaljer - se Kommissionens genomförandeförordning (EU) 2022/996 av (…), bilaga VII
C36: Produktionen av kemikalier/produkter som används vid uttag eller odling
C37: Användningen av el inom jordbruk eller skogsbruk
C38: Utvinnings- eller odlingsprocessen | D38: Användning av bränsle för jordbruks- eller skogsbruksmaskiner
D39: Kemiska gödselmedel och bekämpningsmedel
D40: Utsädesmaterial
D41: Utsläpp från neutralisering av försurning via gödselmedel
D42: Markutsläpp från kalkning (jordbrukskalk)
D43: Markutsläpp av dikväveoxid (N2O) från odling av grödor
C44: Insamling, torkning och lagring av råvaror | D44: Utsläpp från insamling inkl transport till lagring
D45: Torkning av biomassa före lagring
D46: Lagring och hantering av biomassa
C47: Avfall och utlakning
H48: =SUM(E36:E47) -> 0
D50: Bearbetning (ep)
C52: Utbyte i processen | D52: Utbyte biobränsle [MJ biobränsle/MJ råvara]
D53: Utbyte samprodukt [MJ samprodukt/MJ råvara]
C55: Energitillförsel, el | D55: Elektrisk energi [MJ/MJ råvara]
D56: Elmix
C57: Energitillförsel, ånga | D57: Ånga [MJ/MJ råvara] | I57: Energitillförsel i form av ånga inkluderar torkning av mellanliggande produkter och material i de fall då detta är relevant.
D58: Verkningsgrad för ångprocessen [%]
D59: Bränsle till ångproduktion
C60: Utsläpp från fossila insatsvaror [g CO2eq/MJ råvara]
C61: Utsläpp från övriga bränslen [g CO2eq/MJ råvara]
C62: Övriga utsläpp g CO2eq/MJ råvara]
H63: =IFERROR((IF(E55>0,E55*_xlfn.XLOOKUP(E56,Data!A8:A10,Data!G8:G10),0)+IF(E57>0,E57/E58*_xlfn.XLOOKUP(E59,Data!A12:A20,Data!G12:G20),0)+SUM(E60:E62))*E52/(E52+E53),"") ->  | I63: För detaljer kring bakomliggande ekvation, se fliken "Användarguide" och "Fördjupning med ekvationer".
D65: Transport och distribution (etd)
D66: =IF(AND(OR(ISBLANK(E11),ISBLANK(E10)),OR(E5="Övriga flytande",E5="Övriga fasta")), "Ange värmevärde och densitet för bränslet i tabellen för Grunddata!","") -> 
D68: Lagring | I68: Beräkningen för lagring avser utsläpp för varmhållning av ett bränsle.
D69: Vid hamn i ursprungsland | E69: Vid hamn i Sverige | F69: Lagring vid förbränningsanläggning
C70: Omfattning
C71: Lagringstid [mån] | I71: 0-12 mån.
C72: Uppvärmingskälla | I72: För uppvärmningskälla "Okänt" antas oljepanna.
C73: Storlek på cistern | H73: =IFERROR(IF(D70="Omfattas", _xlfn.XLOOKUP(D73,Data!A71:A74,Data!H71:H74)*D71*_xlfn.XLOOKUP(D72,Data!A22:A26,Data!G22:G26)/(IF(Enhet_värmevärde="MJ/l vid 15° C", E9*1000, E9*IF(E5="Övriga flytande", E11,_xlfn.XLOOKUP(E5, Data!A52:A67, Data!D52:D67)))*0.5*_xlfn.XLOOKUP(D73,Data!A71:A74,Data!I71:I74)), 0) +IF(E70="Omfattas", _xlfn.XLOOKUP(E73,Data!A71:A74,Data!H71:H74)*E71*_xlfn.XLOOKUP(E72,Data!A22:A26,Data!G22:G26)/(IF(Enhet_värmevärde="MJ/l vid 15° C", E9*1000, E9*IF(E5="Övriga flytande", E11,_xlfn.XLOOKUP(E5, Data!A52:A67, Data!D52:D67)))*0.5*_xlfn.XLOOKUP(E73,Data!A71:A74,Data!I71:I74)), 0)+IF(F70="Omfattas", _xlfn.XLOOKUP(F73,Data!A71:A74,Data!H71:H74)*F71*_xlfn.XLOOKUP(F72,Data!A22:A26,Data!G22:G26)/(IF(Enhet_värmevärde="MJ/l vid 15° C", E9*1000, E9*IF(E5="Övriga flytande", E11,_xlfn.XLOOKUP(E5, Data!A52:A67, Data!D52:D67)))*0.5*_xlfn.XLOOKUP(F73,Data!A71:A74,Data!I71:I74)), 0),"") -> 0 | I73: För detaljer kring bakomliggande ekvation, se fliken "Användarguide" och "Fördjupning med ekvationer".
D75: Sjötransport
D76: Från raffinering/uppkomst till lagringsplats | E76: Från lagringsplats utomlands till hamn i Sverige | F76: Från hamn till lagringen vid hamn i Sverige
C77: Omfattning
C78: Fordonstyp | I78: Om "Okänt" antas restrektivt värde.
C79: Bränsleslag | I79: Klimatpåverkan per MJ transporterat biobränsle för ett fartyg fullastat med endast biobränslet. Motsvarar genomsnittlig klimatpåverkan per MJ för transport av biobränslet som endast del av samma last. Fartyget antas vara fullastat. Endast beräkning för vald omfattning. Om "Okänt" används ett restriktivt värde.
C80: Transportavstånd [km] | H80: =IFERROR((IF(D77="Omfattas",_xlfn.XLOOKUP(D79,Data!A28:A34,Data!G28:G34)*_xlfn.XLOOKUP(D78,Data!A86:A89,Data!K86:K89)*_xlfn.XLOOKUP(D78,Data!A86:A89,Data!M86:M89)*D80/(_xlfn.XLOOKUP(D78,Data!A86:A89,Data!L86:L89)*1000), 0)+IF(E77="Omfattas", _xlfn.XLOOKUP(E79,Data!A28:A34,Data!G28:G34)*_xlfn.XLOOKUP(E78,Data!A86:A89,Data!K86:K89)*_xlfn.XLOOKUP(E78,Data!A86:A89,Data!M86:M89)*E80/(_xlfn.XLOOKUP(E78,Data!A86:A89,Data!L86:L89)*1000), 0)+IF(F77="Omfattas", _xlfn.XLOOKUP(F79,Data!A28:A34,Data!G28:G34)*_xlfn.XLOOKUP(F78,Data!A86:A89,Data!K86:K89)*_xlfn.XLOOKUP(F78,Data!A86:A89,Data!M86:M89)*F80/(_xlfn.XLOOKUP(F78,Data!A86:A89,Data!L86:L89)*1000), 0))/IF(OR(Enhet_värmevärde="MJ/l vid 15° C",Enhet_värmevärde=""), E9*1000/IF(E5="Övriga flytande", E11,IF(E5="Övriga fasta",E11,_xlfn.XLOOKUP(E5, Data!A52:A67, Data!D52:D67))), E9),"") ->  | I80: För detaljer kring bakomliggande ekvation, se fliken "Användarguide" och "Fördjupning med ekvationer".
D82: Landtransport
D83: Vägtransport - i Sverige | E83: Vägtransport - utomlands
C84: Omfattning
C85: Fordonstyp | I85: "Okänt fordon" motsvarar det alternativ som ger högst utsläpp, dvs lätt lastbil.
C86: Bränsleslag | I86: Bränsleförbrukning för transport beräknas både för ut-och hemresan med valt fordon som lastat respektive olastat enligt nedan. Totala emissioner är summan av ut- och hemresan. Endast beräkning för vald omfattning.
C87: Transportavstånd [km] | H87: =IFERROR(IF(D84="Omfattas", _xlfn.XLOOKUP(D86,Data!A8:A47,Data!G8:G47)*_xlfn.XLOOKUP(D85,Data!A91:A95,Data!K91:K95)*(2*_xlfn.XLOOKUP(D85,Data!A91:A95,Data!M91:M95)+_xlfn.XLOOKUP(D85,Data!A91:A95,Data!L91:L95))*D87/(_xlfn.XLOOKUP(D85,Data!A91:A95,Data!L91:L95)*IF(Enhet_värmevärde="MJ/l vid 15° C", E9*1000/IF(E5="Övriga flytande",E11,IF(E5="Övriga fasta", E11,_xlfn.XLOOKUP(E5, Data!A52:A62, Data!D52:D62))), E9)*1000), 0)+IF(E84="Omfattas", _xlfn.XLOOKUP(E86,Data!A8:A47,Data!G8:G47)*_xlfn.XLOOKUP(E85,Data!A91:A95,Data!K91:K95)*(2*_xlfn.XLOOKUP(E85,Data!A91:A95,Data!M91:M95)+_xlfn.XLOOKUP(E85,Data!A91:A95,Data!L91:L95))*E87/(_xlfn.XLOOKUP(E85,Data!A91:A95,Data!L91:L95)*IF(Enhet_värmevärde="MJ/l vid 15° C", E9*1000/IF(E5="Övriga flytande",E11,IF(E5="Övriga fasta", E11,_xlfn.XLOOKUP(E5, Data!A52:A62, Data!D52:D62))), E9)*1000), 0),"") -> 0 | I87: För detaljer kring bakomliggande ekvation, se fliken "Användarguide" och "Fördjupning med ekvationer".
D90: Resultat utsläpp
D92: Term | E92: Värde [g CO2eq/MJ]
D93: Leverantörens tidigare utsläpp | E93: =IF(D19="Omfattas ej", "", E19) -> 0
D94: Utvinning eller odling av råvaror (eec) | E94: =IF(D20="Faktiskt värde",H48,IF(D20="Eget värde",E20,IF(D20="Delnormalvärde",IF(E4="Flytande",_xlfn.XLOOKUP(E13,_xlfn.VSTACK(Data!A99:A133,Data!A135:A147),_xlfn.VSTACK(Data!N99:N133,Data!N135:N147)),IF(E4="Fast",_xlfn.XLOOKUP(E13,Data!A151:A243,Data!R151:R243),"")))*IF(OR(E5="ETBE",E5="TAEE",E5="MTBE"),_xlfn.XLOOKUP(E5,Data!A245:A247,Data!W245:W247),1))) -> 0
D95: Förändringar i kollager (el) | E95: =E27 -> 0
D96: Bearbetning (ep) | E96: =IF(D21="Faktiskt värde",H63, IF(D21="Eget värde",E21, IF(D21="Delnormalvärde",IF(E4="Flytande",_xlfn.XLOOKUP(E13,_xlfn.VSTACK(Data!A99:A133,Data!A135:A147),_xlfn.VSTACK(Data!O99:O133,Data!O135:O147)),IF(E4="Fast",_xlfn.XLOOKUP(E13,Data!A151:A243,Data!S151:S243),"")))*IF(OR(E5="ETBE",E5="TAEE",E5="MTBE"),_xlfn.XLOOKUP(E5,Data!A245:A247,Data!W245:W247),1))) -> 0
D97: Transport och distribution (etd) | E97: =IF(D22="Faktiskt värde",SUM(H73,H80,H87),IF(D22="Eget värde",E22,IF(D22="Delnormalvärde",IF(E4="Flytande",_xlfn.XLOOKUP(E13,_xlfn.VSTACK(Data!A99:A133,Data!A135:A147),_xlfn.VSTACK(Data!P99:P133,Data!P135:P147)),IF(E4="Fast",_xlfn.XLOOKUP(E13,Data!A151:A243,Data!T151:T243),"")))*IF(OR(E5="ETBE",E5="TAEE",E5="MTBE"),_xlfn.XLOOKUP(E5,Data!A245:A247,Data!W245:W247),1))) -> 0
D98: Användning av bränslet (eu) | E98: =IF( AND(cell_Användningsområde<>"Motordrift",cell_Användningsområde<>"", cell_Omfattas_eu="Värde från genomförandeförordningen"), IF( cell_Bränsletyp="Flytande", Data!G49, IF( cell_Bränsletyp="Fast", Data!G50, 0 ) ), IF( AND(cell_Användningsområde<>"Motordrift", cell_Användningsområde<>"", cell_Omfattas_eu="Eget värde"), E23, IF( AND(cell_Användningsområde<>"Motordrift", cell_Användningsområde<>"", cell_Omfattas_eu="Delnormalvärde"), _xlfn.XLOOKUP(cell_Produktionskedja,Data!$A$151:$A$243,Data!$G$151:$G$243), 0 ) ) ) -> 0 | I98: Klimatpåverkan för användning av bränsle från metan och lustgas, ifall ändamålet inte är motordrift.
D99: Kollager förbättrade jordbruksmetoder (esca) | E99: =-E28 -> 0
D100: Avskiljning och lagring av CO2 (eccs) | E100: =-E29 -> 0
D101: Avskiljning och ersättning av CO2 (eccr) | E101: =-E30 -> 0
D102: Total E | E102: =IFERROR(IF(E12="","",IF(E12<>"Normalvärde",SUBTOTAL(109,E93:E101),IF(E6="Motordrift", (1-_xlfn.XLOOKUP(E13,_xlfn.VSTACK(Data!A99:A133,Data!A135:A147),_xlfn.VSTACK(Data!Q99:Q133,Data!Q135:Q147)))*Data!X249, ""))*IF(E12="Normalvärde",IF(OR(E5="ETBE",E5="TAEE",E5="MTBE"),_xlfn.XLOOKUP(E5,Data!A245:A247,Data!W245:W247),1),1)),"") ->  | I102: Utsläppen från användning av biodrivmedlet/biobränslet
D103: =IF(AND(E6<>"Motordrift", E6<>""), IF(Kraftvärme="ja", "ECh", "Total EC"), "Total EC") -> Total EC | E103: =IFERROR(IF(AND(E4="Fast",E12="Normalvärde"),IF(E6="Elproduktion",(1-_xlfn.XLOOKUP(E13,Data!$A$151:$A$243,Data!$V$151:$V$243))*_xlfn.XLOOKUP(E6,Data!$A$250:$A$254,Data!$Z$250:$Z$254),(1-_xlfn.XLOOKUP(E13,Data!$A$151:$A$243,Data!$U$151:$U$243))*_xlfn.XLOOKUP(E6,Data!$A$250:$A$254,Data!$Y$250:$Y$254)),IF(D24="Omfattas",'EC-beräkning'!D46,"")),"") ->  | F103: =IF(AND(D24="Omfattas",E12<>"Normalvärde"),IF( E103="","Fyll i fliken EC-beräkning!",IF(OR('EC-beräkning'!G7<>"",'EC-beräkning'!G8<>"",'EC-beräkning'!G9<>""),"Se över indata på fliken EC-beräkning","")),"") -> Fyll i fliken EC-beräkning! | I103: Utsläppen från produktion av energi med biobränslet, ej applicerbart vid motordrift
D104: ECel | E104: =IFERROR(IF(Kraftvärme="ja",IF(AND(E4="Fast",E12="Normalvärde"),(1-_xlfn.XLOOKUP(E13,Data!$A$151:$A$243,Data!$V$151:$V$243))*_xlfn.XLOOKUP(E6,Data!$A$250:$A$254,Data!$Z$250:$Z$254),IF(D24="Omfattas",'EC-beräkning'!E46,"")),""),"") ->  | F104: =IF(AND(D24="Omfattas", E104="",E12<>"Normalvärde",Kraftvärme="ja"),"Fyll i fliken EC-beräkning!","") -> 

Sheet EC-beräkning (hidden)
F1: =versionsnummer -> v1.1
B2: Växthusgasutsläpp från energiomvandling (EC) | E2: =IF(OR(ISERROR(E15),ISERROR(E16),ISERROR(E23),IF(AND(E19="Nej",E20=""),TRUE,FALSE)),"Fyll i samtliga gula celler i formuläret", "") -> Fyll i samtliga gula celler i formuläret
B3: Växthusgasutsläpp innan energiomvandling
B4: Växthusgasutsläpp (E) | C4: Utsläpp från bränslepartiet, exklusive slutlig energiomvandling. | E4: ='Indata och beräkning'!E102 ->  | F4: g CO2eq/MJbr.
B6: Årlig produktion och tillförsel
B7: Värmeproduktion | C7: Mängd producerad värme från pannan (utan RGK). | F7: MWh | G7: =IF(AND($E$33="El",E7>0),"Endast elproduktion. Ta bort data för värmeproduktion på denna rad!","") -> 
C8: Mängd producerad värme från rökgaskondensorn (enbart RGK). | F8: MWh | G8: =IF(AND($E$33="El",E8>0),"Endast elproduktion. Ta bort data för värmeproduktion på denna rad!","") -> 
B9: Elproduktion | C9: Mängd producerad el från pannan. | F9: MWh | G9: =IF(AND($E$33="Värme",E9>0),"Endast värmeproduktion. Ta bort data för elproduktion på denna rad!","") -> 
B10: Total produktion | C10: Mängd producerad energi från pannan. | E10: =SUM(E7:E9) -> 0
B11: Tillfört bränsle (totalt) | C11: Mängd tillfört bränsle (fossilt och bio) till pannan. | F11: MWh
B12: Tillfört bränsle (parti) | C12: Mängd tillfört bränsle från det specifika partiet. | E12: ='Indata och beräkning'!E7*IF('Indata och beräkning'!E8="MWh",1,IF('Indata och beräkning'!E8="kg",IF('Indata och beräkning'!E5="Övriga flytande",'Indata och beräkning'!E10,_xlfn.XLOOKUP('Indata och beräkning'!E5,Data!A52:A67, Data!F52:F67))/3600,IF('Indata och beräkning'!E5="Övriga flytande",1000/'Indata och beräkning'!E11*'Indata och beräkning'!E10/3600,_xlfn.XLOOKUP('Indata och beräkning'!E5, Data!A52:A62, Data!E52:E62)/3600*1000/_xlfn.XLOOKUP('Indata och beräkning'!E5,Data!A52:A67, Data!D52:D67)))) ->  | F12: MWh
B14: Verkningsgrad
B15: ⴄh | C15: Värmeverkningsgrad (direkt), beräknad på årsbasis. | E15: =(E7+E8)/E11 ->  | G15: =IFERROR(IF(E15>1, "Verkningsgraden överstiger 100 %, detta kan vara möjligt om ni använder er av RGK, annars se över er data.",""),"") -> 
B16: ⴄel | C16: Elverkningsgrad (direkt), beräknad på årsbasis. | E16: =E9/E11 ->  | G16: =IFERROR(IF(E16>1, "Verkningsgraden överstiger 100 %, detta kan vara möjligt om ni använder er av RGK, annars se över er data.",""),"") -> 
B18: Beräkning av exergin i el och värme
C19: Värmen är överskottsvärme för uppvärmning av byggnader och understiger 150 °C.
B20: Th | C20: Temperatur på nyttiggjord värme vid leveranspunkten °C. | F20: =IF(E19="Ja","C°","") -> 
B21: Th | C21: Absolut temperatur på nyttiggjord värme vid leveranspunkten (Kelvin) | E21: =IF(E19="Nej",E20+273.15,"") ->  | F21: =IF(E19="Nej","K","") -> 
B22: T0 | C22: Omgivningstemperatur (konstant) | E22: =IF(E19="Nej",273.15,"") ->  | F22: =IF(E19="Nej","K","") -> 
B23: Ch | C23: Carnoteffektiviteten för värme | E23: =IF(E19="Ja",0.3546,(E21-E22)/E21) -> 
B27: Cel
B28: Cel | C28: Exergi i elektricitet | E28: 1
B30: Ch
B32: Typ av produktion | F32: Välj den typ av energianläggning (panna) ni har:
B33: Energianläggning som enbart producerar värme - välj "Värme" | E33: =IF(OR('Indata och beräkning'!E6="Värme- Kylaproduktion",'Indata och beräkning'!E6="Värme- Kylaproduktion (fysisk ersättning av kol)"),"Värme", IF('Indata och beräkning'!E6="Elproduktion","El", IF(OR('Indata och beräkning'!E6="Kraftvärmeproduktion",'Indata och beräkning'!E6="Kraftvärmeproduktion (fysisk ersättning av kol)"),"Kraftvärme",""))) -> 
B34: Energianläggning som enbart producerar el - välj "El"
B35: Energianläggning som producerar värme och el - välj "Kraftvärme"
B37: Fossil motsvarighet | F37: Välj den fossila motsvarigheten som ni träffas av.
B38: Fossil motsvarighet, värme | E38: =IF(OR('Indata och beräkning'!E6="Värme- Kylaproduktion", 'Indata och beräkning'!E6="Kraftvärmeproduktion"), 80, IF(OR('Indata och beräkning'!E6="Värme- Kylaproduktion (fysisk ersättning av kol)", 'Indata och beräkning'!E6="Kraftvärmeproduktion (fysisk ersättning av kol)"), 124, IF('Indata och beräkning'!E6="Elproduktion", "Ej tillämpligt", ""))) ->  | F38: =IF(E38="Ej tillämpligt","","g CO2eq/MJ") -> g CO2eq/MJ
B39: Fossil motsvarighet, el | E39: =IF(OR('Indata och beräkning'!E6="Värme- Kylaproduktion", 'Indata och beräkning'!E6="Värme- Kylaproduktion (fysisk ersättning av kol)"), "Ej tillämpligt", IF(OR('Indata och beräkning'!E6="Elproduktion",'Indata och beräkning'!E6="Kraftvärmeproduktion", 'Indata och beräkning'!E6="Kraftvärmeproduktion (fysisk ersättning av kol)"), 183, "")) ->  | F39: =IF(E39="Ej tillämpligt","","g CO2eq/MJ") -> g CO2eq/MJ
B41: Resultat
D43: =IF(E33="Kraftvärme","Parti h","Parti") -> Parti | E43: =IF(E33="Kraftvärme","Parti el","") -> 
C44: Partiets storlek (%) | D44: =IF(Kraftvärme="ja",($E$7+$E$8)/(E10),1) -> 1 | E44: =IFERROR(IF(E33="Kraftvärme",$E$9/($E$7+$E$8+$E$9),""),"") -> 
C45: Mängd | D45: =IFERROR($D$44*$E$12,"") ->  | E45: =IFERROR(IF(E33="Kraftvärme",E44*$E$12,"MWh"),"") -> MWh | F45: =IF(E33="Kraftvärme","MWh","") -> 
C46: Växthusgasutsläpp EC | D46: =IFERROR(IF(E33="Värme",$E$4/MIN(E15,1),IF(E33="El",$E$4/MIN(E16,1),IF(E33="Kraftvärme",((E4/MIN(E15,1))*((E23*MIN(E15,1))/(E28*MIN(E16,1)+E23*MIN(E15,1)))),""))),"") ->  | E46: =IFERROR(IF(E33="Kraftvärme",((E4/MIN(1,E16))*((E28*MIN(1,E16))/(E28*MIN(1,E16)+E23*MIN(1,E15)))),"g CO2eq/MJ"),"") -> g CO2eq/MJ | F46: =IF(E33="Kraftvärme","g CO2eq/MJ","") -> 
C47: Utsläppsminskning | D47: =IFERROR(IF(E33="El",1-D46/E39,1-D46/E38),"") ->  | E47: =IFERROR(IF(E33="Kraftvärme",1-E46/E39,""),"") -> 

Sheet Resultat
G1: =versionsnummer -> v1.1
A5: Bränsletyp | B5: Bränslekategori | C5: Användningsområde | D5: Metod för bestämmande av växthusgasutsläpp | E5: Produktionskedja | F5: Växthusgasutsläpp E [g CO2eq/MJ] | G5: Växthusgasutsläpp EC [g CO2eq/MJ] | H5: Ta ej bort
A6: =IF(ISBLANK('Indata och beräkning'!E4),"", 'Indata och beräkning'!E4) ->  | B6: =IF(ISBLANK('Indata och beräkning'!E5),"",'Indata och beräkning'!E5) ->  | C6: =IF(OR('Indata och beräkning'!E6="Kraftvärmeproduktion", 'Indata och beräkning'!E6="Kraftvärmeproduktion (fysisk ersättning av kol)"), "Kraftvärmeproduktion (värme)", 'Indata och beräkning'!E6) -> 0 | D6: =IF(ISBLANK('Indata och beräkning'!E12),"",'Indata och beräkning'!E12) ->  | E6: =IF('Indata och beräkning'!E12 <> "Faktiska värden", IF(ISBLANK('Indata och beräkning'!E13),"",'Indata och beräkning'!E13), "") ->  | F6: =IF('Indata och beräkning'!E6 <> "", 'Indata och beräkning'!E102, "") ->  | G6: =IFERROR('Indata och beräkning'!E103, "") -> 
A7: =A6 ->  | B7: =B6 ->  | C7: =IF(OR('Indata och beräkning'!E6="Kraftvärmeproduktion", 'Indata och beräkning'!E6="Kraftvärmeproduktion (fysisk ersättning av kol)"), "Kraftvärmeproduktion (el)", "") ->  | D7: =IF(OR('Indata och beräkning'!E6="Kraftvärmeproduktion", 'Indata och beräkning'!E6="Kraftvärmeproduktion (fysisk ersättning av kol)"), D6, "") ->  | E7: =E6 ->  | F7: =F6 ->  | G7: =IFERROR('Indata och beräkning'!E104, "") ->  | H7: Ta ej bort

Sheet Data
AB1: =versionsnummer -> v1.1
B2: GWP-faktor [kg CO2eq/kg CH4] | C2: GWP-faktor [kg CO2eq/kg N2O] | D2: Densitet [kg/m3] | E2: Värmevärde, LHV [MJ/l] | F2: Värmevärde, LHV [MJ/kg] | G2: Emissionsfaktor [g CO2eq/MJ] | H2: Energiförlust för lagring [MJ/mån] | I2: Volym [m3] | J2: Avstånd [km] | K2: Drivmedelseffektivitet [MJ/ton/km] | L2: Lastvikt [ton] | M2: Deplacement [ton] | N2: eec inklusive N2O-utsläpp från mark [g CO2eq/MJ] | O2: ep [g CO2eq/MJ] | P2: etd [g CO2eq/MJ] | Q2: Normalvärde för minskningen av växthusgasutsläpp [%/100] | R2: Odling | S2: Bearbetning | T2: Transport och distribution | U2: Normalvärde för minskningen av växthusgasutsläpp [%/100] | W2: Förnybara andelar [%/100] | X2: Fossil motsvarighet, EF respektive ECf [CO2eq/MJ] | AA2: Källa | AB2: Kommentar
A3: Benämning | U3: Värme | V3: El | X3: E | Y3: ECh | Z3: ECel
A4: Egenskaper bränslen
A5: GWP-faktor | B5: 25 | C5: 298 | AA5: Naturvårdsverket (2023), Klimatklivet - Vägledning om beräkning av utsläppsminskning, https://www.naturvardsverket.se/4a6ac7/globalassets/amnen/klimat/klimatklivet/vagledning-berakna-utslappsminskning-230915.pdf [Åtkomstdatum 19 september 2024]
A6: Avsnitt i modell
A7: Bearbetning (ep), Transport och distribution (etd) - landtransport
A8: Nordisk elmix | G8: =90.4/3.6 -> 25.11111111 | AA8: Sandgren, A. & Nilsson, J. (2021) SMED Rapport Nr 4 2021 Emissionsfaktor för nordisk elmix med hänsyn till import och export, https://naturvardsverket.diva-portal.org/smash/get/diva2:1540012/FULLTEXT01.pdf, [Åtkomstdatum: 13 december 2023]
A9: Svensk elmix | G9: =(26)/(3.6) -> 7.222222222 | AA9: Kommissionens genomförandeförordning (EU) 2022/996 av den 14 juni 2022 om regler för att verifiera hållbarhet och kriterier för minskade växthusgasutsläpp och kriterier för låg risk för indirekt ändring av markanvändning , bilaga IX | AB9: Koldioxidintensitet för producerad och använd el i Sverige 2019. Genomsnitt för använd el från låg, mellan och högspänning.
A10: EU-elmix | G10: =308/3.6 -> 85.55555556 | AA10: Kommissionens genomförandeförordning (EU) 2022/996 av den 14 juni 2022 om regler för att verifiera hållbarhet och kriterier för minskade växthusgasutsläpp och kriterier för låg risk för indirekt ändring av markanvändning , bilaga IX | AB10: EU-27: Koldioxidintensitet för producerad och använd el i EU 2019. Genomsnitt för använd el från låg, mellan och högspänning. Värdet skiljer sig mkt från JRCs data från 2014 som är 136-150 g CO2ekv/MJel beroende på HV, MV eller LV.
A11: Bearbetning (ep)
A12: Stenkol | G12: 112.32 | AA12: Kommissionens genomförandeförordning (EU) 2022/996 av den 14 juni 2022 om regler för att verifiera hållbarhet och kriterier för minskade växthusgasutsläpp och kriterier för låg risk för indirekt ändring av markanvändning , bilaga IX
A13: Eldningsolja | G13: 94.2 | AA13: Kommissionens genomförandeförordning (EU) 2022/996 av den 14 juni 2022 om regler för att verifiera hållbarhet och kriterier för minskade växthusgasutsläpp och kriterier för låg risk för indirekt ändring av markanvändning , bilaga IX | AB13: Tung eldningsolja.
A14: Naturgas | G14: 66 | AA14: Kommissionens genomförandeförordning (EU) 2022/996 av den 14 juni 2022 om regler för att verifiera hållbarhet och kriterier för minskade växthusgasutsläpp och kriterier för låg risk för indirekt ändring av markanvändning , bilaga IX | AB14: Naturgas (EU-mix ) tidigare baserat på naturgas (Västeuropa).
A15: Torv | G15: =106+B5*0.001+C5*0.0015 -> 106.472 | AA15: Bilaga till kommissionens delegerade förordning (EU) om komplettering av Europaparlamentets och rådets direktiv (EU) 2018/2001 genom fastställande av ett minimitröskelvärde för minskningen av växthusgasutsläpp från återvunna kolbaserade bränslen och genom specificering av en metod för bedömningen av minskningen av växthusgasutsläpp från förnybara flytande och gasformiga drivmedel av icke-biologiskt ursprung och från återvunna kolbaserade bränslen | AB15: Utsläppsfaktorer tidigare led för torv är 0.
A16: Biobränsle - Icke förädlade | G16: 2.156651716 | AA16: Gode, J. et el, (2011), Miljöfaktaboken 2011 - Uppskattade emissionsfaktorer för bränslen, el, värme och transporter, Värmeforsk, https://energiforskmedia.blob.core.windows.net/media/17907/miljoefaktaboken-2011-vaermeforskrapport-1183.pdf [Åtkomstdatum 13 december 2023] | AB16: GROT.
A17: Biobränslen - Förädlade | G17: 0.2538 | AA17: Kommissionens genomförandeförordning (EU) 2022/996 av den 14 juni 2022 om regler för att verifiera hållbarhet och kriterier för minskade växthusgasutsläpp och kriterier för låg risk för indirekt ändring av markanvändning , bilaga IX | AB17: Pellets.
A18: Verksamhetsavfall | G18: 26.89277513 | AA18: Gode, J. et el, (2011), Miljöfaktaboken 2011 - Uppskattade emissionsfaktorer för bränslen, el, värme och transporter, Värmeforsk, https://energiforskmedia.blob.core.windows.net/media/17907/miljoefaktaboken-2011-vaermeforskrapport-1183.pdf [Åtkomstdatum 13 december 2023] | AB18: PTP = Papper, trä, plast. Uppskattade emissionsfaktorer för bränslen, el, värme och transporter.
A19: Hushållsavfall | G19: 40.147 | AA19: Naturvårdsverket (2024), Emissionsfaktorer och värmevärden submission 2024, https://www.naturvardsverket.se/490983/contentassets/e5656a81bce94bf1bdb832f5cf998daf/ef-bilaga-klimat2.xlsx [Åtkomstdatum: 19 september 2024] | AB19: NVV 2021 - 40.147 gCO2 ekv /MJ för fjärrvärme el produktion.
A20: Gasol | G20: 65.1548 | AA20: Naturvårdsverket (2024), Emissionsfaktorer och värmevärden submission 2024, https://www.naturvardsverket.se/490983/contentassets/e5656a81bce94bf1bdb832f5cf998daf/ef-bilaga-klimat2.xlsx [Åtkomstdatum: 19 september 2024] | AB20: Stationär förbränning av gasol (propan och butan).
A21: Transport och distribution (etd) - lagring
A22: Fjärrvärme - Sverigemedel | G22: =(70.1+59.2+53.7+52+51.4)/5/3.6 -> 15.91111111 | AA22: Energiföretagen Sverige (2024), Miljövärdering av fjärrvärme, https://www.energiforetagen.se/statistik/fjarrvarmestatistik/miljovardering-av-fjarrvarme/ [Åtkomstdatum: 19 september 2024] | AB22: Fjärrvärme, genomsnittliga miljövärden för Sverige. Oljepanna antas för "Okänt".
A23: Eldningsolja | G23: =77.4+0.003*B5+0.0006*C5+11.6 -> 89.2538 | AA23: Bilaga till kommissionens delegerade förordning (EU) om komplettering av Europaparlamentets och rådets direktiv (EU) 2018/2001 genom fastställande av ett minimitröskelvärde för minskningen av växthusgasutsläpp från återvunna kolbaserade bränslen och genom specificering av en metod för bedömningen av minskningen av växthusgasutsläpp från förnybara flytande och gasformiga drivmedel av icke-biologiskt ursprung och från återvunna kolbaserade bränslen | AB23: Stationär förbränning av eldningsolja (tidigare oljepanna). Inkl. standardutsläppsfaktor för stationär förbränning, samt utsläppsfaktor för bränsle i tidigare led. 77.4 g CO2/kg, 0.003 g CH4/kg, 0.0006 g NO2/kg.
A24: Spillvärme | G24: 0 | AA24: Erlandsson, M. (2018), Byggnaders klimatpåverkan, timme för timme - idag och i framtiden, https://www.ivl.se/download/18.694ca0617a1de98f472d4d/1628414616722/FULLTEXT01.pdf [Åtkomstdatum 20 december 2023] | AB24: Enligt källan ingen klimatpåverkan pga det rör sig om spill.
A25: Biobränsle | G25: =0.03*B5+C5*0.004+0.7 -> 2.642 | AA25: Bilaga till kommissionens delegerade förordning (EU) om komplettering av Europaparlamentets och rådets direktiv (EU) 2018/2001 genom fastställande av ett minimitröskelvärde för minskningen av växthusgasutsläpp från återvunna kolbaserade bränslen och genom specificering av en metod för bedömningen av minskningen av växthusgasutsläpp från förnybara flytande och gasformiga drivmedel av icke-biologiskt ursprung och från återvunna kolbaserade bränslen | AB25: Fasta biobränslen (tidigare Fjärrvärme, biokraftvärme).
A26: Okänt | G26: =G23 -> 89.2538 | AB26: Antas som eldningsolja.
A27: Transport och distribution (etd) - sjötransport
A28: Eo1 (antas motsvara MGO, marin dieselolja) | F28: =0.0427*1000 -> 42.7 | G28: 90.6 | AA28: Europaparlamentets och rådets förordning (EU) 2023/1805 av den 13 september 2023 om användning av förnybara och koldioxidsnåla bränslen för sjötransport och om ändring av direktiv 2009/16/EG | AB28: MDO, MGO. Föreslaget standardvärde (ännu inte beslutade, EP&C, 2021). Värmevärde från ursprungskälla.
A29: Eo2-6 (HFO) | F29: =0.0405*1000 -> 40.5 | G29: 91.6 | AB29: HFO. Föreslaget standardvärde (ännu inte beslutade, EP&C, 2021). Värmevärde från ursprungskälla.
A30: Diesel (MDO) | F30: =0.0427*1000 -> 42.7 | G30: 90.6 | AB30: MDO. Föreslaget standardvärde (ännu inte beslutade, EP&C, 2021). Värmevärde från ursprungskälla.
A31: LNG | F31: =0.0491*1000 -> 49.1 | G31: 75.2 | AB31: LNG. Föreslaget standardvärde (ännu inte beslutade, EP&C, 2021). Värmevärde från ursprungskälla.
A32: Biodiesel (antaget HVO) | F32: 44 | G32: 7.1 | AA32: Energimyndigheten (2023), Drivmedel 2022 - Resultat och analys av rapportering enligt regelverken för hållbarhetskriterier, reduktionsplikt och drivmedelslag (ER 2023:19), https://energimyndigheten.a-w2m.se/Arkitektkopia/ViewTemplate?tid=f65b4be60c404a1c85a6e8c772e31946 [Åtkomstdatum: 19 september 2024] | AB32: Biodiesel i form av HVO. Rapporten publiceras varje år, vid uppdatera emissionsfaktor vid förändring.
A33: LNG/LBG (antaget biogas) | F33: 50 | G33: 4.9 | AA33: Energimyndigheten (2023), Drivmedel 2022 - Resultat och analys av rapportering enligt regelverken för hållbarhetskriterier, reduktionsplikt och drivmedelslag (ER 2023:19), https://energimyndigheten.a-w2m.se/Arkitektkopia/ViewTemplate?tid=f65b4be60c404a1c85a6e8c772e31946 [Åtkomstdatum: 19 september 2024] | AB33: Biogas i flytande form. Rapporten publiceras varje år, vid uppdatera emissionsfaktor vid förändring.
A34: Okänt | G34: =G29*1.1 -> 100.76 | AB34: Emissionsfaktor: Konservativt värde 10 % högre än HFO.
A35: Transport och distribution (etd) - landtransport
A36: Diesel (svenskt medelvärde) | G36: =95.1*0.94 -> 89.394 | AA36: Energimyndigheten (2021), Vägledning om drivmedelslagen (2021:3), https://energimyndigheten.a-w2m.se/Arkitektkopia/ViewTemplate?tid=06a54135eba340e8b3f1f64b22714ceb [Åtkomstdatum: 19 september 2024] | AB36: Emissionsfaktor gäller från 2024. 95.1 g CO2eq/MJ enligt vägledningen och motsvarande 6 % reduktionsplikt.
A37: Bensin MK1 | G37: 85.5 | AA37: Energimyndigheten (2023), Drivmedel 2022 - Resultat och analys av rapportering enligt regelverken för hållbarhetskriterier, reduktionsplikt och drivmedelslag (ER 2023:19), https://energimyndigheten.a-w2m.se/Arkitektkopia/ViewTemplate?tid=f65b4be60c404a1c85a6e8c772e31946 [Åtkomstdatum: 19 september 2024] | AB37: Rapporten publiceras varje år, vid uppdatera emissionsfaktor vid förändring. OBS nationella värden.
A38: Diesel MK1 | G38: 66.7
A39: Diesel MK3 | G39: 77.4
A40: HVO100 | G40: 10.5
A41: FAME (B100) | G41: 33.3
A42: Alkylatbensin | G42: 93.3
A43: E85 | G43: 49.6
A44: ED95 | G44: 20.2
A45: Fordonsgas | G45: 2.3
A46: LNG/LBG | G46: 10.5
A47: Okänt | G47: =89.4*1.1 -> 98.34 | AB47: Högsta emissionsfaktorn bland bränslen för landtransport antas, dvs diesel (svensk medelvärde). 10% påslag.
A48: Användning av bränslet (eu)
A49: Flytande bränslen | G49: 0.14 | AA49: Kommissionens genomförandeförordning (EU) 2022/996 av den 14 juni 2022 om regler för att verifiera hållbarhet och kriterier för minskade växthusgasutsläpp och kriterier för låg risk för indirekt ändring av markanvändning | AB49: Tabell 7, värde för bioolja från 2022/996.
A50: Fasta bränslen | G50: 0.4 | AA50: Kommissionens genomförandeförordning (EU) 2022/996 av den 14 juni 2022 om regler för att verifiera hållbarhet och kriterier för minskade växthusgasutsläpp och kriterier för låg risk för indirekt ändring av markanvändning | AB50: Tabell 7, värde för primary solid biofuels från 2022/996.
A51: Biobränslen,vätskor
A52: Biodiesel | D52: 893 | E52: 33.5 | F52: 37.5 | AA52: Europaparlamentets och rådets direktiv (EU) 2018/2001 av den 11 december 2018 om främjande av användningen av energi från förnybara energikällor (omarbetning) | AB52: Genomsnitt FAME och FAEE.
A53: Butanol | D53: 818.1818182 | E53: 27 | F53: 33 | AB53: Från förnybara källor.
A54: Etanol | D54: 777.7777778 | E54: 21 | F54: 27 | AB54: Från förnybara källor.
A55: ETBE | D55: 750 | E55: 27 | F55: 36 | AB55: Varav 37 % från förnybara energikällor.
A56: Bensin (Fischer-Tropsch) | D56: 750 | E56: 33 | F56: 44 | AB56: Bensin (Fischer-Tropsch) (ett syntetiskt kolväte eller en blandning av syntetiska kolväten som framställs från biomassa, att användas som ersättning för bensin).
A57: Diesel (Fischer-Tropsch) | D57: 772.7272727 | E57: 34 | F57: 44 | AB57: Diesel (Fischer-Tropsch) (ett syntetiskt kolväte eller en blandning av syntetiska kolväten, att användas som ersättning för diesel).
A58: Metanol | D58: 800 | E58: 16 | F58: 20 | AB58: Från förnybara källor.
A59: MTBE | D59: 742.8571429 | E59: 26 | F59: 35 | AB59: Varav 22 % från förnybara energikällor.
A60: Ren vegetabilisk olja | D60: 918.9189189 | E60: 34 | F60: 37 | AB60: Olja som framställs av oljeväxter genom pressning, extraktion eller liknande metoder. Oraffinerad eller raffinerad men kemiskt oförändrad.
A61: TAEE | D61: 763.1578947 | E61: 29 | F61: 38 | AB61: Varav 29 % från förnybara energikällor.
A62: Vätebehandlad vegetabilisk olja | D62: 720 | E62: 32 | F62: 44.5 | AB62: Vätebehandlad olja - genomsnitt för diesel och bensin.
A63: Biobränslen, fasta
A64: Bark | D64: 400 | F64: 5.58 | AA64: Ringman, M. (1995), Fakta Skog - Trädbränslesortiment - definitioner och egenskaper, https://www.slu.se/globalassets/ew/ew-centrala/forskn/popvet-dok/faktaskog/faktaskog95/4s95-05.pdf [Åtkomstdatum 20 december 2023] | AB64: Bark från barrved, VMR-kod 85. Densitet: Rå bulkdensitet kg/m3s (kg ved per m3 skäppmått). MJ/kg = MWh/kg*3.6.
A65: Briketter/pellets | D65: 650 | F65: 19 | AA65: Kommissionens genomförandeförordning (EU) 2022/996 av den 14 juni 2022 om regler för att verifiera hållbarhet och kriterier för minskade växthusgasutsläpp och kriterier för låg risk för indirekt ändring av markanvändning , bilaga IX | AB65: Gissningsvis rå bulkdensitet.
A66: Flis | D66: 155 | F66: 19 | AA66: Kommissionens genomförandeförordning (EU) 2022/996 av den 14 juni 2022 om regler för att verifiera hållbarhet och kriterier för minskade växthusgasutsläpp och kriterier för låg risk för indirekt ändring av markanvändning , bilaga IX
A67: Sågspån | D67: 350 | F67: 19 | AA67: Värmevärde [MJ/kg]: Kommissionens genomförandeförordning (EU) 2022/996 av den 14 juni 2022 om regler för att verifiera hållbarhet och kriterier för minskade växthusgasutsläpp och kriterier för låg risk för indirekt ändring av markanvändning . Densitet [kg/m3]: Ringman, M. (1995), Fakta Skog - Trädbränslesortiment - definitioner och egenskaper, https://www.slu.se/globalassets/ew/ew-centrala/forskn/popvet-dok/faktaskog/faktaskog95/4s95-05.pdf [Åtkomstdatum 20 december 2023] | AB67: Densitet: Rå bulkdensitet. Värmevärde: =1,9*3600=6840 MJ/ton, sågspån med fukthalt 57 %.
A68: Övriga data - Transport och distribution (etd)
A69: Lagring
A70: Cisterntyp
A71: Liten (2000 m3) | H71: 32371.488 | I71: 2011 | AB71: Liten cistern [ca 2000 m3], Sverige
A72: Medelstor (9000 m3) | H72: 86312.0448 | I72: 9048 | AB72: Medelstor cistern [ca 9000 m3], Sverige
A73: Stor (30000 m3) | H73: 194300.4672 | I73: 30054 | AB73: Stor cistern [ca 30000 m3], Sverige
A74: Okänd | H74: 32371.49 | I74: 2011 | AB74: Okänd cistern, tempererat klimat [20 grader C]. Liten cistern antas.
A75: Sjötransport
A76: Standardvärde transportsträcka "Från raffinering/uppkomst till lagringsplats" och "Från hamn till lagringen vid hamn i Sverige" [km] | J76: 500
A77: Maximalt värde transportsträcka "Från raffinering/uppkomst till lagringsplats" och "Från hamn till lagringen vid hamn i Sverige" [km] | AA77: Searates, (2024), Find the best Freight Quote, https://www.searates.com/ [Åtkomstdatum 19 september 2024] | AB77: Maximala möjliga sträckan sjövägen inom Sverige.
A78: Rutt: Strömstad-Piteå | J78: 1834
A79: Transportsträcka - "Från lagringsplats utomlands till hamn i Sverige"
A80: Rutt: Sydamerika-Sverige | J80: =4555*1.852+1431.6 -> 9867.46
A81: Rutt: Nordamerika-Sverige | J81: =3275*1.852+1431.6 -> 7496.9
A82: Rutt: Asien-Sverige | J82: =7982*1.852+1431.6 -> 16214.264
A83: Rutt: Brasilien-Sverige | J83: =5423*1.852+1431.6 -> 11474.996
A84: Rutt: Afrika-Sverige | J84: =6142*1.852+1431.6 -> 12806.584
A85: Rutt: USA västkust-Sverige | J85: =3927*1.852+1431.6 -> 8704.404
A86: Bulkfartyg, litet | K86: =AVERAGE(K87:K88)*2.5 -> 0.875 | L86: 8000 | M86: 13000 | AA86: Drivmedelseffektivitet [MJ/ton/km]: Johansson, M., (2021), Klimat och miljöeffekter av att flytta godstransporter från väg, VTI, http://vti.diva-portal.org/smash/get/diva2:1569889/FULLTEXT01 [Åtkomstdatum: 20 december 2023]; Lastvikt [ton]: Consolidated Shipping Line (2021), http://cslindia.net/type-of-container-ships/ [Åtkomstdatum: 20 december 2023]; Deplacement [ton]: Shibata Fender Team (2021) SFT Design Manual, https://www.shibata-fender.team/files/content/Downloads/SFT-Design-Manual-US-English-2021.pdf [Åtkomstdatum: 14 december 2023] | AB86: Drivmedelseffektivitet [MJ/ton/km]: Jämförelse av klimatpåverkan i förhållande till storlek för fartyg på över resp under 10 000 DWT på s. 34 och 36, Samgodsmodellen för 2017. Ca 2.5 gånger större klimatpåverkan/DWT för fartyg under 10 000 DWT. Antagits vara proportionellt mot bränsleförbrukningen. Lastvikt [ton]: Feeder vessels. Högsta lastvikten för spannet. Deplacement [ton]: Antagit bulkfartyg med 10000 DWT.
A87: Bulkfartyg "Handysize" | K87: 0.43 | L87: 30000 | M87: 38000 | AA87: Drivmedelseffektivitet [MJ/ton/km]: Kommissionens genomförandeförordning (EU) 2022/996 av den 14 juni 2022 om regler för att verifiera hållbarhet och kriterier för minskade växthusgasutsläpp och kriterier för låg risk för indirekt ändring av markanvändning , bilaga IX; Lastvikt [ton]: Suisca Group (2023), The appropriate types of cargo ships according to the load they carry, https://www.suiscagroup.com/en/noticias/types-of-cargo-ships/ [Åtkomstdatum: 13 december 2023]; Deplacement [ton]: National Technical University of Athens, Naval Architecture and Marine Engineering (2020) Second Module: Emissions, https://shippingsaas.eu/sites/default/files/presentations/2_Emissions_module_All_Bulkcarriers.pdf, [Åtkomstdatum: 20 december 2023] | AB87: Drivmedelseffektivitet [MJ/ton/km]: Det högsta värdet inom kategorin Bulkfartyg "Handysize" (eldningsolja) i källan - restprodukter från jordbruket med låg bulkdensitet (125 kg/m3). Lastvikt [ton]: Load capacity. Deplacement [ton]: Avrundat genomsnittligt värde.
A88: Bulkfartyg "Supramax" | K88: 0.27 | L88: 54000 | M88: 74000 | AA88: Drivmedelseffektivitet [MJ/ton/km]: Kommissionens genomförandeförordning (EU) 2022/996 av den 14 juni 2022 om regler för att verifiera hållbarhet och kriterier för minskade växthusgasutsläpp och kriterier för låg risk för indirekt ändring av markanvändning bilaga IX; Lastvikt [ton]: Network for Transport Measures (NTM), Propulsion trends in bulk carriers, https://www.transportmeasures.org/en/wiki/manuals/sea/payload/ [Åtkomstdatum: 13 december 2023]; Deplacement [ton]: Lindstad, E., et al (2022), Ship of the future – A slender dry-bulker with wind assisted propulsion. Maritime Transport Research, Vol. 3, 2022, 100055, https://sciencedirect.com/science/article/pii/S2666822X22000065?via%3Dihub [Åtkomstdatum: 15 december 2023] | AB88: Drivmedelseffektivitet [MJ/ton/km]: Det högsta värdet inom kategorin bulkfartyg "Supramax" (eldningsolja) i källan - restprodukter från jordbruket med låg bulkdensitet (125 kg/m3). Lastvikt [ton]: Antagit kvoten lastvikt/DWT på 0.9 enligt NTM och 60000 DWT enligt MAN Energy Solutions. Deplacement [ton]: Deplacement för 200 m Supramax. Avrundat värde.
A89: Bulkfartyg, okänt | K89: 0.88 | L89: 8000 | M89: 13000 | AA89: Antas vara samma som "Bulkfartyg, litet"
A90: Landtransport
A91: Lätt lastbil | K91: 2.24 | L91: =9*0.75 -> 6.75 | M91: 12 | AA91: Drivmedelseffektivitet [MJ/ton/km]: Kommissionens genomförandeförordning (EU) 2022/996 av den 14 juni 2022 om regler för att verifiera hållbarhet och kriterier för minskade växthusgasutsläpp och kriterier för låg risk för indirekt ändring av markanvändning bilaga IX; Lastvikt [ton]: Johansson, M., (2021), Klimat och miljöeffekter av att flytta godstransporter från väg, VTI, http://vti.diva-portal.org/smash/get/diva2:1569889/FULLTEXT01 [Åtkomstdatum: 20 december 2023]; Nelldal, B. & Ahlstedt, L. (2023). Strukturförändringar inom godstransporter - Utbud efterfrågan och konkurrens 1988-2022 samt strukturförändringar i järnvägens godstrafik. https://www.diva-portal.org/smash/get/diva2:1796987/FULLTEXT01.pdf [Åtkomstdatum: 13 december 2023] | AB91: Drivmedelseffektivitet [MJ/ton/km]: Lastbil (12 ton) för transport av färska fruktklasar (FFB) (diesel). Lastvikt [ton]: Lastkapaciteten 9 ton för lastbil med totalvikt mellan 3.5 and 15 ton; två axlar enligt (VTI, 2021). Fyllnadsgraden antagen till 75% enligt (Bolle Rail Research, 2023) för lastbil med lastkapaciteten 40 ton.
A92: Tung lastbil | K92: 0.88 | L92: =40*0.75 -> 30 | M92: 40 | AA92: Drivmedelseffektivitet [MJ/ton/km]: Kommissionens genomförandeförordning (EU) 2022/996 av den 14 juni 2022 om regler för att verifiera hållbarhet och kriterier för minskade växthusgasutsläpp och kriterier för låg risk för indirekt ändring av markanvändning , bilaga IX; Lastvikt [ton]: Johansson, M., (2021), Klimat och miljöeffekter av att flytta godstransporter från väg, VTI, http://vti.diva-portal.org/smash/get/diva2:1569889/FULLTEXT01 [Åtkomstdatum: 20 december 2023]; Nelldal, B. & Ahlstedt, L. (2023). Strukturförändringar inom godstransporter - Utbud efterfrågan och konkurrens 1988-2022 samt strukturförändringar i järnvägens godstrafik. https://www.diva-portal.org/smash/get/diva2:1796987/FULLTEXT01.pdf [Åtkomstdatum: 13 december 2023] | AB92: Drivmedelseffektivitet [MJ/ton/km]: Lastbil (40 ton) för stallgödsel (diesel). Den högsta bränsleförbrukningen bland 40-tons lastbilar i källan. Lastvikt [ton]: Lastkapaciteten 28 ton för lastbil med totalvikt mellan 25 and 40 ton; ekipage med 3 + 4 axlar enligt (VTI, 2021). Fyllnadsgraden antagen till 75% enligt (Bolle Rail Research, 2023) för lastbil med lastkapaciteten 40 ton.
A93: Okänt fordon | K93: =K91 -> 2.24 | L93: =L91 -> 6.75 | M93: =M91 -> 12
A94: Järnvägstransport - diesellok | K94: 0.25 | L94: 641 | M94: 1229 | AA94: Drivmedelseffektivitet [MJ/ton/km]: Kommissionens genomförandeförordning (EU) 2022/996 av den 14 juni 2022 om regler för att verifiera hållbarhet och kriterier för minskade växthusgasutsläpp och kriterier för låg risk för indirekt ändring av markanvändning, bilaga IX; Lastvikt [ton]: Strukturförändringar inom godstransporter (Nelldal & Ahlstedt. Bolle Rail Research, 2023). https://www.diva-portal.org/smash/get/diva2:1796987/FULLTEXT01.pdf; Deplacement [ton]: Nelldal, B. & Ahlstedt, L. (2023). Strukturförändringar inom godstransporter - Utbud efterfrågan och konkurrens 1988-2022 samt strukturförändringar i järnvägens godstrafik. https://www.diva-portal.org/smash/get/diva2:1796987/FULLTEXT01.pdf [Åtkomstdatum: 13 december 2023] | AB94: Drivmedelseffektivitet [MJ/ton/km]: Godståg Förenta staterna (diesel). Lastvikt [ton]: Genomsnittlig lastvikt för godståg år 2022. Deplacement [ton]: Genomsnittlig tågvikt för godståg år 2022.
A95: Järnvägstransport - el | K95: 0.21 | L95: 641 | M95: 1229 | AA95: Drivmedelseffektivitet [MJ/ton/km]: Kommissionens genomförandeförordning (EU) 2022/996 av den 14 juni 2022 om regler för att verifiera hållbarhet och kriterier för minskade växthusgasutsläpp och kriterier för låg risk för indirekt ändring av markanvändning, bilaga IX; Lastvikt [ton]: Strukturförändringar inom godstransporter (Nelldal & Ahlstedt. Bolle Rail Research, 2023). https://www.diva-portal.org/smash/get/diva2:1796987/FULLTEXT01.pdf; Deplacement [ton]: Nelldal, B. & Ahlstedt, L. (2023). Strukturförändringar inom godstransporter - Utbud efterfrågan och konkurrens 1988-2022 samt strukturförändringar i järnvägens godstrafik. https://www.diva-portal.org/smash/get/diva2:1796987/FULLTEXT01.pdf [Åtkomstdatum: 13 december 2023] | AB95: Drivmedelseffektivitet [MJ/ton/km]: Järnväg (elektrisk, mellanspänning). Lastvikt [ton]: Genomsnittlig lastvikt för godståg år 2022. Deplacement [ton]: Genomsnittlig tågvikt för godståg år 2022.
A96: Delnormalvärden från STEMFS 2025:2 bilaga 6 (Disaggregerade normalvärden (delnormalvärden) för flytande biodrivmedel och flytande biobränslen) Normalvärden från STEMFS 2025:2 Bilaga 3 ( Normalvärden för flytande biodrivmedel när de produceras utan några nettoutsläpp av koldioxidekvivalenter till följd av förändrad markanvändning)
A97: Produktionskedja
A98: Flytande
A99: Etanol av sockerbetor (utan biogas från drank, naturgas som processbränsle i konventionell panna) | N99: 9.6 | O99: 26.3 | P99: 2.3 | Q99: 0.59 | AA99: eec inklusive N2O-utsläpp från mark, ep, etd [g CO2eq/MJ]: Delnormalvärden från STEMFS 2025:2 Bilaga 6, Normalvärde för minskningen av växthusgasutsläpp [%/100]: Normalvärden från STEMFS 2025:2 Bilaga 3 | AB99: eec: Värde enligt produktionskedjan "Etanol av sockerbetor".
A100: Etanol av sockerbetor (med biogas från drank, naturgas som processbränsle i konventionell panna) | N100: 9.6 | O100: 13.6 | P100: 2.3 | Q100: 0.73 | AA100: eec inklusive N2O-utsläpp från mark, ep, etd [g CO2eq/MJ]: Delnormalvärden från STEMFS 2025:2 Bilaga 6, Normalvärde för minskningen av växthusgasutsläpp [%/100]: Normalvärden från STEMFS 2025:2 Bilaga 3
A101: Etanol av sockerbetor (utan biogas från drank, naturgas som processbränsle i kraftvärmeverk (Normalvärde: *, Delnormalvärde: **)) | N101: 9.6 | O101: 18.5 | P101: 2.3 | Q101: 0.68 | AA101: eec inklusive N2O-utsläpp från mark, ep, etd [g CO2eq/MJ]: Delnormalvärden från STEMFS 2025:2 Bilaga 6, Normalvärde för minskningen av växthusgasutsläpp [%/100]: Normalvärden från STEMFS 2025:2 Bilaga 3
A102: Etanol av sockerbetor (med biogas från drank, naturgas som processbränsle i kraftvärmeverk (Normalvärde: *, Delnormalvärde: **)) | N102: 9.6 | O102: 10.6 | P102: 2.3 | Q102: 0.76 | AA102: eec inklusive N2O-utsläpp från mark, ep, etd [g CO2eq/MJ]: Delnormalvärden från STEMFS 2025:2 Bilaga 6, Normalvärde för minskningen av växthusgasutsläpp [%/100]: Normalvärden från STEMFS 2025:2 Bilaga 3
A103: Etanol av sockerbetor (utan biogas från drank, brunkol som processbränsle i kraftvärmeverk (Normalvärde: *, Delnormalvärde: **)) | N103: 9.6 | O103: 38.3 | P103: 2.3 | Q103: 0.47 | AA103: eec inklusive N2O-utsläpp från mark, ep, etd [g CO2eq/MJ]: Delnormalvärden från STEMFS 2025:2 Bilaga 6, Normalvärde för minskningen av växthusgasutsläpp [%/100]: Normalvärden från STEMFS 2025:2 Bilaga 3
A104: Etanol av sockerbetor (med biogas från drank, brunkol som processbränsle i kraftvärmeverk (Normalvärde: *, Delnormalvärde: **)) | N104: 9.6 | O104: 22 | P104: 2.3 | Q104: 0.64 | AA104: eec inklusive N2O-utsläpp från mark, ep, etd [g CO2eq/MJ]: Delnormalvärden från STEMFS 2025:2 Bilaga 6, Normalvärde för minskningen av växthusgasutsläpp [%/100]: Normalvärden från STEMFS 2025:2 Bilaga 3
A105: Etanol av majs (naturgas som processbränsle i konventionell panna) | N105: 25.5 | O105: 29.1 | P105: 2.2 | Q105: 0.4 | AA105: eec inklusive N2O-utsläpp från mark, ep, etd [g CO2eq/MJ]: Delnormalvärden från STEMFS 2025:2 Bilaga 6, Normalvärde för minskningen av växthusgasutsläpp [%/100]: Normalvärden från STEMFS 2025:2 Bilaga 3 | AB105: eec: Värde enligt produktionskedjan "Etanol av majs".
A106: Etanol av majs (naturgas som processbränsle i kraftvärmeverk (Normalvärde: *, Delnormalvärde: **)) | N106: 25.5 | O106: 20.8 | P106: 2.2 | Q106: 0.48 | AA106: eec inklusive N2O-utsläpp från mark, ep, etd [g CO2eq/MJ]: Delnormalvärden från STEMFS 2025:2 Bilaga 6, Normalvärde för minskningen av växthusgasutsläpp [%/100]: Normalvärden från STEMFS 2025:2 Bilaga 3
A107: Etanol av majs (brunkol som processbränsle i kraftvärmeverk (Normalvärde: *, Delnormalvärde: **)) | N107: 25.5 | O107: 40.1 | P107: 2.2 | Q107: 0.28 | AA107: eec inklusive N2O-utsläpp från mark, ep, etd [g CO2eq/MJ]: Delnormalvärden från STEMFS 2025:2 Bilaga 6, Normalvärde för minskningen av växthusgasutsläpp [%/100]: Normalvärden från STEMFS 2025:2 Bilaga 3
A108: Etanol av majs (restprodukter från skogsbruk som processbränsle i kraftvärmeverk (Normalvärde: *, Delnormalvärde: **)) | N108: 25.5 | O108: 2.6 | P108: 2.2 | Q108: 0.68 | AA108: eec inklusive N2O-utsläpp från mark, ep, etd [g CO2eq/MJ]: Delnormalvärden från STEMFS 2025:2 Bilaga 6, Normalvärde för minskningen av växthusgasutsläpp [%/100]: Normalvärden från STEMFS 2025:2 Bilaga 3
A109: Etanol av spannmål utom majs (naturgas som processbränsle i konventionell panna) | N109: 27 | O109: 29.3 | P109: 2.2 | Q109: 0.38 | AA109: eec inklusive N2O-utsläpp från mark, ep, etd [g CO2eq/MJ]: Delnormalvärden från STEMFS 2025:2 Bilaga 6, Normalvärde för minskningen av växthusgasutsläpp [%/100]: Normalvärden från STEMFS 2025:2 Bilaga 3 | AB109: eec: Värde enligt produktionskedjan "Etanol av spannmål utom majs".
A110: Etanol av spannmål utom majs (naturgas som processbränsle i kraftvärmeverk (Normalvärde: *, Delnormalvärde: **)) | N110: 27 | O110: 21.1 | P110: 2.2 | Q110: 0.46 | AA110: eec inklusive N2O-utsläpp från mark, ep, etd [g CO2eq/MJ]: Delnormalvärden från STEMFS 2025:2 Bilaga 6, Normalvärde för minskningen av växthusgasutsläpp [%/100]: Normalvärden från STEMFS 2025:2 Bilaga 3
A111: Etanol av spannmål utom majs (brunkol som processbränsle i kraftvärmeverk (Delnormalvärde ep: **)) | N111: 27 | O111: 42.5 | P111: 2.2 | Q111: 0.24 | AA111: eec inklusive N2O-utsläpp från mark, ep, etd [g CO2eq/MJ]: Delnormalvärden från STEMFS 2025:2 Bilaga 6, Normalvärde för minskningen av växthusgasutsläpp [%/100]: Normalvärden från STEMFS 2025:2 Bilaga 3
A112: Etanol av spannmål utom majs (restprodukter från skogsbruk som processbränsle i kraftvärmeverk Normalvärde: *, Delnormalvärde: **)) | N112: 27 | O112: 2.2 | P112: 2.2 | Q112: 0.67 | AA112: eec inklusive N2O-utsläpp från mark, ep, etd [g CO2eq/MJ]: Delnormalvärden från STEMFS 2025:2 Bilaga 6, Normalvärde för minskningen av växthusgasutsläpp [%/100]: Normalvärden från STEMFS 2025:2 Bilaga 3
A113: Etanol av sockerrör | N113: 17.1 | O113: 1.8 | P113: 9.7 | Q113: 0.7 | AA113: eec inklusive N2O-utsläpp från mark, ep, etd [g CO2eq/MJ]: Delnormalvärden från STEMFS 2025:2 Bilaga 6, Normalvärde för minskningen av växthusgasutsläpp [%/100]: Normalvärden från STEMFS 2025:2 Bilaga 3
A114: Biodiesel av raps | N114: 32 | O114: 16.3 | P114: 1.8 | Q114: 0.47 | AA114: eec inklusive N2O-utsläpp från mark, ep, etd [g CO2eq/MJ]: Delnormalvärden från STEMFS 2025:2 Bilaga 6, Normalvärde för minskningen av växthusgasutsläpp [%/100]: Normalvärden från STEMFS 2025:2 Bilaga 3
A115: Biodiesel av solros | N115: 26.1 | O115: 16.5 | P115: 2.1 | Q115: 0.52 | AA115: eec inklusive N2O-utsläpp från mark, ep, etd [g CO2eq/MJ]: Delnormalvärden från STEMFS 2025:2 Bilaga 6, Normalvärde för minskningen av växthusgasutsläpp [%/100]: Normalvärden från STEMFS 2025:2 Bilaga 3
A116: Biodiesel av sojabönor | N116: 21.2 | O116: 16.9 | P116: 8.9 | Q116: 0.5 | AA116: eec inklusive N2O-utsläpp från mark, ep, etd [g CO2eq/MJ]: Delnormalvärden från STEMFS 2025:2 Bilaga 6, Normalvärde för minskningen av växthusgasutsläpp [%/100]: Normalvärden från STEMFS 2025:2 Bilaga 3
A117: Biodiesel av palmolja (öppen damm för avloppsslam) | N117: 26 | O117: 42.6 | P117: 6.9 | Q117: 0.2 | AA117: eec inklusive N2O-utsläpp från mark, ep, etd [g CO2eq/MJ]: Delnormalvärden från STEMFS 2025:2 Bilaga 6, Normalvärde för minskningen av växthusgasutsläpp [%/100]: Normalvärden från STEMFS 2025:2 Bilaga 3 | AB117: eec: Värde enligt produktionskedjan "Biodiesel av palmolja".
A118: Biodiesel av palmolja (processen i oljefabriken sker med omhändertagande av metan) | N118: 26 | O118: 18.5 | P118: 6.9 | Q118: 0.45 | AA118: eec inklusive N2O-utsläpp från mark, ep, etd [g CO2eq/MJ]: Delnormalvärden från STEMFS 2025:2 Bilaga 6, Normalvärde för minskningen av växthusgasutsläpp [%/100]: Normalvärden från STEMFS 2025:2 Bilaga 3
A119: Biodiesel av avfall i form av matolja | N119: 0 | O119: 13 | P119: 1.9 | Q119: 0.84 | AA119: eec inklusive N2O-utsläpp från mark, ep, etd [g CO2eq/MJ]: Delnormalvärden från STEMFS 2025:2 Bilaga 6, Normalvärde för minskningen av växthusgasutsläpp [%/100]: Normalvärden från STEMFS 2025:2 Bilaga 3
A120: Biodiesel av animaliska fetter från utsmältning (Delnormalvärde ep, etd: *, Delnormalvärde eec, Normalvärde: **) | N120: 0 | O120: 19.1 | P120: 1.6 | Q120: 0.78 | AA120: eec inklusive N2O-utsläpp från mark, ep, etd [g CO2eq/MJ]: Delnormalvärden från STEMFS 2025:2 Bilaga 6, Normalvärde för minskningen av växthusgasutsläpp [%/100]: Normalvärden från STEMFS 2025:2 Bilaga 3
A121: Vätebehandlad vegetabilisk olja av raps | N121: 33.4 | O121: 15 | P121: 1.7 | Q121: 0.47 | AA121: eec inklusive N2O-utsläpp från mark, ep, etd [g CO2eq/MJ]: Delnormalvärden från STEMFS 2025:2 Bilaga 6, Normalvärde för minskningen av växthusgasutsläpp [%/100]: Normalvärden från STEMFS 2025:2 Bilaga 3
A122: Vätebehandlad vegetabilisk olja av solros | N122: 26.9 | O122: 14.7 | P122: 2 | Q122: 0.54 | AA122: eec inklusive N2O-utsläpp från mark, ep, etd [g CO2eq/MJ]: Delnormalvärden från STEMFS 2025:2 Bilaga 6, Normalvärde för minskningen av växthusgasutsläpp [%/100]: Normalvärden från STEMFS 2025:2 Bilaga 3
A123: Vätebehandlad vegetabilisk olja av sojabönor | N123: 22.1 | O123: 15.2 | P123: 9.2 | Q123: 0.51 | AA123: eec inklusive N2O-utsläpp från mark, ep, etd [g CO2eq/MJ]: Delnormalvärden från STEMFS 2025:2 Bilaga 6, Normalvärde för minskningen av växthusgasutsläpp [%/100]: Normalvärden från STEMFS 2025:2 Bilaga 3
A124: Vätebehandlad vegetabilisk olja av palmolja (öppen damm för avloppsslam) | N124: 27.3 | O124: 38.9 | P124: 7 | Q124: 0.22 | AA124: eec inklusive N2O-utsläpp från mark, ep, etd [g CO2eq/MJ]: Delnormalvärden från STEMFS 2025:2 Bilaga 6, Normalvärde för minskningen av växthusgasutsläpp [%/100]: Normalvärden från STEMFS 2025:2 Bilaga 3 | AB124: eec: Värde enligt produktionskedjan "Vätebehandlad vegetabilisk olja av palmolja".
A125: Vätebehandlad vegetabilisk olja av palmolja (processen i oljefabriken sker med omhändertagande av metan) | N125: 27.3 | O125: 13.6 | P125: 7 | Q125: 0.49 | AA125: eec inklusive N2O-utsläpp från mark, ep, etd [g CO2eq/MJ]: Delnormalvärden från STEMFS 2025:2 Bilaga 6, Normalvärde för minskningen av växthusgasutsläpp [%/100]: Normalvärden från STEMFS 2025:2 Bilaga 3
A126: Vätebehandlad olja av avfall i form av matolja | N126: 0 | O126: 14.3 | P126: 1.7 | Q126: 0.83 | AA126: eec inklusive N2O-utsläpp från mark, ep, etd [g CO2eq/MJ]: Delnormalvärden från STEMFS 2025:2 Bilaga 6, Normalvärde för minskningen av växthusgasutsläpp [%/100]: Normalvärden från STEMFS 2025:2 Bilaga 3
A127: Vätebehandlad olja av animaliska fetter från utsmältning (Delnormalvärde ep, etd: *, Delnormalvärde eec, normalvärde: **) | N127: 0 | O127: 20.3 | P127: 1.5 | Q127: 0.77 | AA127: eec inklusive N2O-utsläpp från mark, ep, etd [g CO2eq/MJ]: Delnormalvärden från STEMFS 2025:2 Bilaga 6, Normalvärde för minskningen av växthusgasutsläpp [%/100]: Normalvärden från STEMFS 2025:2 Bilaga 3
A128: Ren vegetabilisk olja av raps | N128: 33.4 | O128: 5.2 | P128: 1.4 | Q128: 0.57 | AA128: eec inklusive N2O-utsläpp från mark, ep, etd [g CO2eq/MJ]: Delnormalvärden från STEMFS 2025:2 Bilaga 6, Normalvärde för minskningen av växthusgasutsläpp [%/100]: Normalvärden från STEMFS 2025:2 Bilaga 3
A129: Ren vegetabilisk olja av solros | N129: 27.2 | O129: 5.4 | P129: 1.7 | Q129: 0.64 | AA129: eec inklusive N2O-utsläpp från mark, ep, etd [g CO2eq/MJ]: Delnormalvärden från STEMFS 2025:2 Bilaga 6, Normalvärde för minskningen av växthusgasutsläpp [%/100]: Normalvärden från STEMFS 2025:2 Bilaga 3
A130: Ren vegetabilisk olja av sojabönor | N130: 22.2 | O130: 5.9 | P130: 8.8 | Q130: 0.61 | AA130: eec inklusive N2O-utsläpp från mark, ep, etd [g CO2eq/MJ]: Delnormalvärden från STEMFS 2025:2 Bilaga 6, Normalvärde för minskningen av växthusgasutsläpp [%/100]: Normalvärden från STEMFS 2025:2 Bilaga 3
A131: Ren vegetabilisk olja av palmolja (öppen damm för avloppsslam) | N131: 27.1 | O131: 31.7 | P131: 6.7 | Q131: 0.3 | AA131: eec inklusive N2O-utsläpp från mark, ep, etd [g CO2eq/MJ]: Delnormalvärden från STEMFS 2025:2 Bilaga 6, Normalvärde för minskningen av växthusgasutsläpp [%/100]: Normalvärden från STEMFS 2025:2 Bilaga 3 | AB131: eec: Värde enligt produktionskedjan "Ren vegetabilisk olja av palmolja".
A132: Ren vegetabilisk olja av palmolja (processen i oljefabriken sker med omhändertagande av metan) | N132: 27.1 | O132: 6.5 | P132: 6.7 | Q132: 0.57 | AA132: eec inklusive N2O-utsläpp från mark, ep, etd [g CO2eq/MJ]: Delnormalvärden från STEMFS 2025:2 Bilaga 6, Normalvärde för minskningen av växthusgasutsläpp [%/100]: Normalvärden från STEMFS 2025:2 Bilaga 3
A133: Ren olja av avfall i form av matolja | N133: 0 | O133: 0.8 | P133: 1.4 | Q133: 0.98 | AA133: eec inklusive N2O-utsläpp från mark, ep, etd [g CO2eq/MJ]: Delnormalvärden från STEMFS 2025:2 Bilaga 6, Normalvärde för minskningen av växthusgasutsläpp [%/100]: Normalvärden från STEMFS 2025:2 Bilaga 3
A134: Delnormalvärden från STEMFS 2025:2 Bilaga 7 (Uppskattade disaggregerade normalvärden för framtida biodrivmedel och flytande biobränslen som inte, eller bara i försumbar omfattning, fanns på marknaden 2016) Normalvärden från STEMFS 2025:2 Bilaga 4 (Uppskattade normalvärden för framtida biodrivmedel som inte, eller bara i försumbar omfattning, fanns på marknaden under 2016, när de produceras utan några nettoutsläpp av koldioxidekvivalenter till följd av förändrad markanvändning)
A135: Etanol av vetehalm | N135: 1.8 | O135: 6.8 | P135: 7.1 | Q135: 0.83 | AA135: eec inklusive N2O-utsläpp från mark, ep, etd [g CO2eq/MJ]: Delnormalvärden från STEMFS 2025:2 Bilaga 7, Normalvärde för minskningen av växthusgasutsläpp [%/100]: Normalvärden från STEMFS 2025:2 Bilaga 4
A136: Fischer-Tropsch-diesel av virkesavfall i fristående anläggningar | N136: 3.3 | O136: 0.1 | P136: 12.2 | Q136: 0.83 | AA136: eec inklusive N2O-utsläpp från mark, ep, etd [g CO2eq/MJ]: Delnormalvärden från STEMFS 2025:2 Bilaga 7, Normalvärde för minskningen av växthusgasutsläpp [%/100]: Normalvärden från STEMFS 2025:2 Bilaga 4
A137: Fischer-Tropsch-diesel av odlad skog i fristående anläggningar | N137: 8.2 | O137: 0.1 | P137: 8.4 | Q137: 0.82 | AA137: eec inklusive N2O-utsläpp från mark, ep, etd [g CO2eq/MJ]: Delnormalvärden från STEMFS 2025:2 Bilaga 7, Normalvärde för minskningen av växthusgasutsläpp [%/100]: Normalvärden från STEMFS 2025:2 Bilaga 4
A138: Fischer-Tropsch-bensin av virkesavfall i fristående anläggningar | N138: 3.3 | O138: 0.1 | P138: 12.2 | Q138: 0.83 | AA138: eec inklusive N2O-utsläpp från mark, ep, etd [g CO2eq/MJ]: Delnormalvärden från STEMFS 2025:2 Bilaga 7, Normalvärde för minskningen av växthusgasutsläpp [%/100]: Normalvärden från STEMFS 2025:2 Bilaga 4
A139: Fischer-Tropsch-bensin av odlad skog i fristående anläggningar | N139: 8.2 | O139: 0.1 | P139: 8.4 | Q139: 0.82 | AA139: eec inklusive N2O-utsläpp från mark, ep, etd [g CO2eq/MJ]: Delnormalvärden från STEMFS 2025:2 Bilaga 7, Normalvärde för minskningen av växthusgasutsläpp [%/100]: Normalvärden från STEMFS 2025:2 Bilaga 4
A140: Dimetyleter (DME) av virkesavfall i fristående anläggningar | N140: 3.1 | O140: 0 | P140: 12.1 | Q140: 0.84 | AA140: eec inklusive N2O-utsläpp från mark, ep, etd [g CO2eq/MJ]: Delnormalvärden från STEMFS 2025:2 Bilaga 7, Normalvärde för minskningen av växthusgasutsläpp [%/100]: Normalvärden från STEMFS 2025:2 Bilaga 4
A141: Dimetyleter (DME) av odlad skog i fristående anläggningar | N141: 7.6 | O141: 0 | P141: 8.6 | Q141: 0.83 | AA141: eec inklusive N2O-utsläpp från mark, ep, etd [g CO2eq/MJ]: Delnormalvärden från STEMFS 2025:2 Bilaga 7, Normalvärde för minskningen av växthusgasutsläpp [%/100]: Normalvärden från STEMFS 2025:2 Bilaga 4
A142: Metanol av virkesavfall i fristående anläggningar | N142: 3.1 | O142: 0 | P142: 12.1 | Q142: 0.84 | AA142: eec inklusive N2O-utsläpp från mark, ep, etd [g CO2eq/MJ]: Delnormalvärden från STEMFS 2025:2 Bilaga 7, Normalvärde för minskningen av växthusgasutsläpp [%/100]: Normalvärden från STEMFS 2025:2 Bilaga 4
A143: Metanol av odlad skog i fristående anläggningar | N143: 7.6 | O143: 0 | P143: 8.6 | Q143: 0.83 | AA143: eec inklusive N2O-utsläpp från mark, ep, etd [g CO2eq/MJ]: Delnormalvärden från STEMFS 2025:2 Bilaga 7, Normalvärde för minskningen av växthusgasutsläpp [%/100]: Normalvärden från STEMFS 2025:2 Bilaga 4
A144: Fischer-Tropsch-diesel av svartlutsförgasning integrerad med massafabrik | N144: 2.5 | O144: 0 | P144: 7.7 | Q144: 0.89 | AA144: eec inklusive N2O-utsläpp från mark, ep, etd [g CO2eq/MJ]: Delnormalvärden från STEMFS 2025:2 Bilaga 7, Normalvärde för minskningen av växthusgasutsläpp [%/100]: Normalvärden från STEMFS 2025:2 Bilaga 4
A145: Fischer-Tropsch-bensin av svartlutsförgasning integrerad med massafabrik | N145: 2.5 | O145: 0 | P145: 7.9 | Q145: 0.89 | AA145: eec inklusive N2O-utsläpp från mark, ep, etd [g CO2eq/MJ]: Delnormalvärden från STEMFS 2025:2 Bilaga 7, Normalvärde för minskningen av växthusgasutsläpp [%/100]: Normalvärden från STEMFS 2025:2 Bilaga 4
A146: Dimetyleter (DME) av svartlutsförgasning integrerad med massafabrik | N146: 2.5 | O146: 0 | P146: 7.7 | Q146: 0.89 | AA146: eec inklusive N2O-utsläpp från mark, ep, etd [g CO2eq/MJ]: Delnormalvärden från STEMFS 2025:2 Bilaga 7, Normalvärde för minskningen av växthusgasutsläpp [%/100]: Normalvärden från STEMFS 2025:2 Bilaga 4
A147: Metanol av svartlutsförgasning integrerad med massafabrik | N147: 2.5 | O147: 0 | P147: 7.9 | Q147: 0.89 | AA147: eec inklusive N2O-utsläpp från mark, ep, etd [g CO2eq/MJ]: Delnormalvärden från STEMFS 2025:2 Bilaga 7, Normalvärde för minskningen av växthusgasutsläpp [%/100]: Normalvärden från STEMFS 2025:2 Bilaga 4
A148: Delnormalvärden från STEMFS 2025:2 Bilaga 8 -Disaggregerade normalvärden för fasta och gasformiga biobränslen samt gasformiga biodrivmedel. Normalvärden från STEMFS 2025:2 Bilaga 5 (Normalvärden för minskningar av växthusgas utsläpp från fasta och gasformiga biobränslen samt gasformiga biodrivmedel när de produceras utan några nettoutsläpp av koldioxidekvivalenter till följd av förändrad markanvändning)
A149: Produktionssystem för biobränsle
A150: Fast
A151: Träflis från restprodukter från skogsbruk, transportsträcka 1–500 km | G151: 0.5 | R151: 0 | S151: 1.9 | T151: 3.6 | U151: 0.91 | V151: 0.87 | AA151: Emissionsfaktor, Odling, Bearbetning, Transport och distribution [g CO2eq/MJ]: Delnormalvärden från STEMFS 2025:2 Bilaga 8, Normalvärde för minskningen av växthusgasutsläpp [%/100]: STEMFS 2025:2 Bilaga 5 | AB151: Fall 1 avser processer där en naturgaspanna används för att tillhandahålla processvärme till pelletpressen. El till pelletpressen tillförs från elnätet. Fall 2a avser processer där en värmepanna för träflis, som matas med förtorkad flis, används för att tillhandahålla processvärme. El till pelletpressen tillförs från elnätet. Fall 3a avser processer där ett kraftvärmeverk, som matas med förtorkad träflis, används för att tillhandahålla el och värme till pelletpressen. En del rader med omfattningen "träbriketter" för delnormalvärden men "träbriketter eller träpellets" för normalvärden. Skrivfel, och att ha samma omfattning?
A152: Träflis från restprodukter från skogsbruk, transportsträcka 500–2 500 km | G152: 0.5 | R152: 0 | S152: 1.9 | T152: 6.2 | U152: 0.87 | V152: 0.81 | AA152: Emissionsfaktor, Odling, Bearbetning, Transport och distribution [g CO2eq/MJ]: Delnormalvärden från STEMFS 2025:2 Bilaga 8, Normalvärde för minskningen av växthusgasutsläpp [%/100]: STEMFS 2025:2 Bilaga 5
A153: Träflis från restprodukter från skogsbruk, transportsträcka 2 500–10 000 km | G153: 0.5 | R153: 0 | S153: 1.9 | T153: 12.6 | U153: 0.78 | V153: 0.67 | AA153: Emissionsfaktor, Odling, Bearbetning, Transport och distribution [g CO2eq/MJ]: Delnormalvärden från STEMFS 2025:2 Bilaga 8, Normalvärde för minskningen av växthusgasutsläpp [%/100]: STEMFS 2025:2 Bilaga 5
A154: Träflis från restprodukter från skogsbruk, transportsträcka över 10 000 km | G154: 0.5 | R154: 0 | S154: 1.9 | T154: 24.6 | U154: 0.6 | V154: 0.41 | AA154: Emissionsfaktor, Odling, Bearbetning, Transport och distribution [g CO2eq/MJ]: Delnormalvärden från STEMFS 2025:2 Bilaga 8, Normalvärde för minskningen av växthusgasutsläpp [%/100]: STEMFS 2025:2 Bilaga 5
A155: Träflis från skottskog med kort omloppstid (eukalyptus), transportsträcka 2 500–10 000 km | G155: 0.5 | R155: 4.4 | S155: 0 | T155: 13.2 | U155: 0.73 | V155: 0.6 | AA155: Emissionsfaktor, Odling, Bearbetning, Transport och distribution [g CO2eq/MJ]: Delnormalvärden från STEMFS 2025:2 Bilaga 8, Normalvärde för minskningen av växthusgasutsläpp [%/100]: STEMFS 2025:2 Bilaga 5
A156: Träflis från skottskog med kort omloppstid (poppel, med gödning), transportsträcka 1–500 km | G156: 0.5 | R156: 3.9 | S156: 0 | T156: 4.2 | U156: 0.87 | V156: 0.81 | AA156: Emissionsfaktor, Odling, Bearbetning, Transport och distribution [g CO2eq/MJ]: Delnormalvärden från STEMFS 2025:2 Bilaga 8, Normalvärde för minskningen av växthusgasutsläpp [%/100]: STEMFS 2025:2 Bilaga 5
A157: Träflis från skottskog med kort omloppstid (poppel, med gödning), transportsträcka 500–2 500 km | G157: 0.5 | R157: 3.9 | S157: 0 | T157: 6.8 | U157: 0.84 | V157: 0.76 | AA157: Emissionsfaktor, Odling, Bearbetning, Transport och distribution [g CO2eq/MJ]: Delnormalvärden från STEMFS 2025:2 Bilaga 8, Normalvärde för minskningen av växthusgasutsläpp [%/100]: STEMFS 2025:2 Bilaga 5
A158: Träflis från skottskog med kort omloppstid (poppel, med gödning), transportsträcka 2 500–10 000 km | G158: 0.5 | R158: 3.9 | S158: 0 | T158: 13.2 | U158: 0.74 | V158: 0.62 | AA158: Emissionsfaktor, Odling, Bearbetning, Transport och distribution [g CO2eq/MJ]: Delnormalvärden från STEMFS 2025:2 Bilaga 8, Normalvärde för minskningen av växthusgasutsläpp [%/100]: STEMFS 2025:2 Bilaga 5
A159: Träflis från skottskog med kort omloppstid (poppel, med gödning), transportsträcka över 10 000 | G159: 0.5 | R159: 3.9 | S159: 0 | T159: 25.2 | U159: 0.57 | V159: 0.35 | AA159: Emissionsfaktor, Odling, Bearbetning, Transport och distribution [g CO2eq/MJ]: Delnormalvärden från STEMFS 2025:2 Bilaga 8, Normalvärde för minskningen av växthusgasutsläpp [%/100]: STEMFS 2025:2 Bilaga 5
A160: Träflis från skottskog med kort omloppstid (poppel, utan gödning), transportsträcka 1–500 km | G160: 0.5 | R160: 2.2 | S160: 0 | T160: 4.2 | U160: 0.9 | V160: 0.85 | AA160: Emissionsfaktor, Odling, Bearbetning, Transport och distribution [g CO2eq/MJ]: Delnormalvärden från STEMFS 2025:2 Bilaga 8, Normalvärde för minskningen av växthusgasutsläpp [%/100]: STEMFS 2025:2 Bilaga 5
A161: Träflis från skottskog med kort omloppstid (poppel, utan gödning), transportsträcka 500–2 500 km | G161: 0.5 | R161: 2.2 | S161: 0 | T161: 6.8 | U161: 0.86 | V161: 0.79 | AA161: Emissionsfaktor, Odling, Bearbetning, Transport och distribution [g CO2eq/MJ]: Delnormalvärden från STEMFS 2025:2 Bilaga 8, Normalvärde för minskningen av växthusgasutsläpp [%/100]: STEMFS 2025:2 Bilaga 5
A162: Träflis från skottskog med kort omloppstid (poppel, utan gödning), transportsträcka 2 500–10 000 km | G162: 0.5 | R162: 2.2 | S162: 0 | T162: 13.2 | U162: 0.77 | V162: 0.65 | AA162: Emissionsfaktor, Odling, Bearbetning, Transport och distribution [g CO2eq/MJ]: Delnormalvärden från STEMFS 2025:2 Bilaga 8, Normalvärde för minskningen av växthusgasutsläpp [%/100]: STEMFS 2025:2 Bilaga 5
A163: Träflis från skottskog med kort omloppstid (poppel, utan gödning), transportsträcka över 10 000 km | G163: 0.5 | R163: 2.2 | S163: 0 | T163: 25.2 | U163: 0.59 | V163: 0.39 | AA163: Emissionsfaktor, Odling, Bearbetning, Transport och distribution [g CO2eq/MJ]: Delnormalvärden från STEMFS 2025:2 Bilaga 8, Normalvärde för minskningen av växthusgasutsläpp [%/100]: STEMFS 2025:2 Bilaga 5
A164: Träflis från stamved, transportsträcka 1–500 km | G164: 0.5 | R164: 1.1 | S164: 0.4 | T164: 3.6 | U164: 0.92 | V164: 0.88 | AA164: Emissionsfaktor, Odling, Bearbetning, Transport och distribution [g CO2eq/MJ]: Delnormalvärden från STEMFS 2025:2 Bilaga 8, Normalvärde för minskningen av växthusgasutsläpp [%/100]: STEMFS 2025:2 Bilaga 5
A165: Träflis från stamved, transportsträcka 500–2 500 km | G165: 0.5 | R165: 1.1 | S165: 0.4 | T165: 6.2 | U165: 0.88 | V165: 0.82 | AA165: Emissionsfaktor, Odling, Bearbetning, Transport och distribution [g CO2eq/MJ]: Delnormalvärden från STEMFS 2025:2 Bilaga 8, Normalvärde för minskningen av växthusgasutsläpp [%/100]: STEMFS 2025:2 Bilaga 5
A166: Träflis från stamved, transportsträcka 2 500–10 000 km | G166: 0.5 | R166: 1.1 | S166: 0.4 | T166: 12.6 | U166: 0.79 | V166: 0.68 | AA166: Emissionsfaktor, Odling, Bearbetning, Transport och distribution [g CO2eq/MJ]: Delnormalvärden från STEMFS 2025:2 Bilaga 8, Normalvärde för minskningen av växthusgasutsläpp [%/100]: STEMFS 2025:2 Bilaga 5
A167: Träflis från stamved, transportsträcka över 10 000 km | G167: 0.5 | R167: 1.1 | S167: 0.4 | T167: 24.6 | U167: 0.61 | V167: 0.42 | AA167: Emissionsfaktor, Odling, Bearbetning, Transport och distribution [g CO2eq/MJ]: Delnormalvärden från STEMFS 2025:2 Bilaga 8, Normalvärde för minskningen av växthusgasutsläpp [%/100]: STEMFS 2025:2 Bilaga 5
A168: Träflis från (trä)industriavfall, transportsträcka 1–500 km | G168: 0.5 | R168: 0 | S168: 0.4 | T168: 3.6 | U168: 0.93 | V168: 0.9 | AA168: Emissionsfaktor, Odling, Bearbetning, Transport och distribution [g CO2eq/MJ]: Delnormalvärden från STEMFS 2025:2 Bilaga 8, Normalvärde för minskningen av växthusgasutsläpp [%/100]: STEMFS 2025:2 Bilaga 5
A169: Träflis från (trä)industriavfall, transportsträcka 500–2 500 km | G169: 0.5 | R169: 0 | S169: 0.4 | T169: 6.2 | U169: 0.9 | V169: 0.85 | AA169: Emissionsfaktor, Odling, Bearbetning, Transport och distribution [g CO2eq/MJ]: Delnormalvärden från STEMFS 2025:2 Bilaga 8, Normalvärde för minskningen av växthusgasutsläpp [%/100]: STEMFS 2025:2 Bilaga 5
A170: Träflis från (trä)industriavfall, transportsträcka 2 500–10 000 km | G170: 0.5 | R170: 0 | S170: 0.4 | T170: 12.6 | U170: 0.8 | V170: 0.71 | AA170: Emissionsfaktor, Odling, Bearbetning, Transport och distribution [g CO2eq/MJ]: Delnormalvärden från STEMFS 2025:2 Bilaga 8, Normalvärde för minskningen av växthusgasutsläpp [%/100]: STEMFS 2025:2 Bilaga 5
A171: Träflis från (trä)industriavfall, transportsträcka över 10 000 km | G171: 0.5 | R171: 0 | S171: 0.4 | T171: 24.6 | U171: 0.63 | V171: 0.44 | AA171: Emissionsfaktor, Odling, Bearbetning, Transport och distribution [g CO2eq/MJ]: Delnormalvärden från STEMFS 2025:2 Bilaga 8, Normalvärde för minskningen av växthusgasutsläpp [%/100]: STEMFS 2025:2 Bilaga 5
A172: Träbriketter eller träpellets av restprodukter från skogsbruk (fall 1), transportsträcka 1–500 km | G172: 0.3 | R172: 0 | S172: 30.9 | T172: 3.5 | U172: 0.49 | V172: 0.24 | AA172: Emissionsfaktor, Odling, Bearbetning, Transport och distribution [g CO2eq/MJ]: Delnormalvärden från STEMFS 2025:2 Bilaga 8, Normalvärde för minskningen av växthusgasutsläpp [%/100]: STEMFS 2025:2 Bilaga 5
A173: Träbriketter eller träpellets av restprodukter från skogsbruk (fall 1), transportsträcka 500–2 500 km | G173: 0.3 | R173: 0 | S173: 30.9 | T173: 3.3 | U173: 0.49 | V173: 0.25 | AA173: Emissionsfaktor, Odling, Bearbetning, Transport och distribution [g CO2eq/MJ]: Delnormalvärden från STEMFS 2025:2 Bilaga 8, Normalvärde för minskningen av växthusgasutsläpp [%/100]: STEMFS 2025:2 Bilaga 5
A174: Träbriketter eller träpellets av restprodukter från skogsbruk (fall 1), transportsträcka 2 500–10 000 km | G174: 0.3 | R174: 0 | S174: 30.9 | T174: 5.2 | U174: 0.47 | V174: 0.21 | AA174: Emissionsfaktor, Odling, Bearbetning, Transport och distribution [g CO2eq/MJ]: Delnormalvärden från STEMFS 2025:2 Bilaga 8, Normalvärde för minskningen av växthusgasutsläpp [%/100]: STEMFS 2025:2 Bilaga 5
A175: Träbriketter eller träpellets av restprodukter från skogsbruk (fall 1), transportsträcka över 10 000 km | G175: 0.3 | R175: 0 | S175: 30.9 | T175: 9.5 | U175: 0.4 | V175: 0.11 | AA175: Emissionsfaktor, Odling, Bearbetning, Transport och distribution [g CO2eq/MJ]: Delnormalvärden från STEMFS 2025:2 Bilaga 8, Normalvärde för minskningen av växthusgasutsläpp [%/100]: STEMFS 2025:2 Bilaga 5
A176: Träbriketter eller träpellets av restprodukter från skogsbruk (fall 2a)), transportsträcka 1–500 km | G176: 0.3 | R176: 0 | S176: 15 | T176: 3.6 | U176: 0.72 | V176: 0.59 | AA176: Emissionsfaktor, Odling, Bearbetning, Transport och distribution [g CO2eq/MJ]: Delnormalvärden från STEMFS 2025:2 Bilaga 8, Normalvärde för minskningen av växthusgasutsläpp [%/100]: STEMFS 2025:2 Bilaga 5
A177: Träbriketter eller träpellets av restprodukter från skogsbruk (fall 2a)), transportsträcka 500–2 500 km | G177: 0.3 | R177: 0 | S177: 15 | T177: 3.5 | U177: 0.72 | V177: 0.59 | AA177: Emissionsfaktor, Odling, Bearbetning, Transport och distribution [g CO2eq/MJ]: Delnormalvärden från STEMFS 2025:2 Bilaga 8, Normalvärde för minskningen av växthusgasutsläpp [%/100]: STEMFS 2025:2 Bilaga 5
A178: Träbriketter eller träpellets av restprodukter från skogsbruk (fall 2a), transportsträcka 2 500–10 000 km | G178: 0.3 | R178: 0 | S178: 15 | T178: 5.3 | U178: 0.7 | V178: 0.55 | AA178: Emissionsfaktor, Odling, Bearbetning, Transport och distribution [g CO2eq/MJ]: Delnormalvärden från STEMFS 2025:2 Bilaga 8, Normalvärde för minskningen av växthusgasutsläpp [%/100]: STEMFS 2025:2 Bilaga 5
A179: Träbriketter eller träpellets av restprodukter från skogsbruk (fall 2a), transportsträcka över 10 000 km | G179: 0.3 | R179: 0 | S179: 15 | T179: 9.8 | U179: 0.63 | V179: 0.45 | AA179: Emissionsfaktor, Odling, Bearbetning, Transport och distribution [g CO2eq/MJ]: Delnormalvärden från STEMFS 2025:2 Bilaga 8, Normalvärde för minskningen av växthusgasutsläpp [%/100]: STEMFS 2025:2 Bilaga 5
A180: Träbriketter eller träpellets av restprodukter från skogsbruk (fall 3a), transportsträcka 1–500 km | G180: 0.3 | R180: 0 | S180: 2.8 | T180: 3.6 | U180: 0.9 | V180: 0.85 | AA180: Emissionsfaktor, Odling, Bearbetning, Transport och distribution [g CO2eq/MJ]: Delnormalvärden från STEMFS 2025:2 Bilaga 8, Normalvärde för minskningen av växthusgasutsläpp [%/100]: STEMFS 2025:2 Bilaga 5
A181: Träbriketter eller träpellets av restprodukter från skogsbruk (fall 3a), transportsträcka 500–2 500 km | G181: 0.3 | R181: 0 | S181: 2.8 | T181: 3.5 | U181: 0.9 | V181: 0.86 | AA181: Emissionsfaktor, Odling, Bearbetning, Transport och distribution [g CO2eq/MJ]: Delnormalvärden från STEMFS 2025:2 Bilaga 8, Normalvärde för minskningen av växthusgasutsläpp [%/100]: STEMFS 2025:2 Bilaga 5
A182: Träbriketter eller träpellets av restprodukter från skogsbruk (fall 3a), transportsträcka 2 500–10 000 km | G182: 0.3 | R182: 0 | S182: 2.8 | T182: 5.3 | U182: 0.88 | V182: 0.81 | AA182: Emissionsfaktor, Odling, Bearbetning, Transport och distribution [g CO2eq/MJ]: Delnormalvärden från STEMFS 2025:2 Bilaga 8, Normalvärde för minskningen av växthusgasutsläpp [%/100]: STEMFS 2025:2 Bilaga 5
A183: Träbriketter eller träpellets av restprodukter från skogsbruk (fall 3a), transportsträcka över 10 000 km | G183: 0.3 | R183: 0 | S183: 2.8 | T183: 9.8 | U183: 0.81 | V183: 0.72 | AA183: Emissionsfaktor, Odling, Bearbetning, Transport och distribution [g CO2eq/MJ]: Delnormalvärden från STEMFS 2025:2 Bilaga 8, Normalvärde för minskningen av växthusgasutsläpp [%/100]: STEMFS 2025:2 Bilaga 5
A184: Träbriketter från skottskog med kort omloppstid (eukalyptus – fall 1), transportsträcka 2 500–10 000 km | G184: 0.3 | R184: 3.9 | S184: 29.4 | T184: 5.2 | U184: 0.43 | V184: 0.15 | AA184: Emissionsfaktor, Odling, Bearbetning, Transport och distribution [g CO2eq/MJ]: Delnormalvärden från STEMFS 2025:2 Bilaga 8, Normalvärde för minskningen av växthusgasutsläpp [%/100]: STEMFS 2025:2 Bilaga 5
A185: Träbriketter från skottskog med kort omloppstid (eukalyptus – fall 2a), transportsträcka 2 500–10 000 km | G185: 0.3 | R185: 5 | S185: 12.7 | T185: 5.3 | U185: 0.66 | V185: 0.49 | AA185: Emissionsfaktor, Odling, Bearbetning, Transport och distribution [g CO2eq/MJ]: Delnormalvärden från STEMFS 2025:2 Bilaga 8, Normalvärde för minskningen av växthusgasutsläpp [%/100]: STEMFS 2025:2 Bilaga 5
A186: Träbriketter från skottskog med kort omloppstid (eukalyptus – fall 3a), transportsträcka 2 500–10 000 km | G186: 0.3 | R186: 5.3 | S186: 0.4 | T186: 5.3 | U186: 0.83 | V186: 0.75 | AA186: Emissionsfaktor, Odling, Bearbetning, Transport och distribution [g CO2eq/MJ]: Delnormalvärden från STEMFS 2025:2 Bilaga 8, Normalvärde för minskningen av växthusgasutsläpp [%/100]: STEMFS 2025:2 Bilaga 5
A187: Träbriketter eller träpellets av skottskog med kort omloppstid (poppel, med gödning – fall 1), transportsträcka 1–500 km | G187: 0.3 | R187: 3.4 | S187: 29.4 | T187: 3.5 | U187: 0.46 | V187: 0.2 | AA187: Emissionsfaktor, Odling, Bearbetning, Transport och distribution [g CO2eq/MJ]: Delnormalvärden från STEMFS 2025:2 Bilaga 8, Normalvärde för minskningen av växthusgasutsläpp [%/100]: STEMFS 2025:2 Bilaga 5
A188: Träbriketter eller träpellets av skottskog med kort omloppstid (poppel, med gödning – fall 1), transportsträcka 500-10 000 km | G188: 0.3 | R188: 3.4 | S188: 29.4 | T188: 5.2 | U188: 0.44 | V188: 0.16 | AA188: Emissionsfaktor, Odling, Bearbetning, Transport och distribution [g CO2eq/MJ]: Delnormalvärden från STEMFS 2025:2 Bilaga 8, Normalvärde för minskningen av växthusgasutsläpp [%/100]: STEMFS 2025:2 Bilaga 5
A189: Träbriketter eller träpellets av skottskog med kort omloppstid (poppel, med gödning – fall 1), transportsträcka över 10 000 km | G189: 0.3 | R189: 3.4 | S189: 29.4 | T189: 9.5 | U189: 0.37 | V189: 0.07 | AA189: Emissionsfaktor, Odling, Bearbetning, Transport och distribution [g CO2eq/MJ]: Delnormalvärden från STEMFS 2025:2 Bilaga 8, Normalvärde för minskningen av växthusgasutsläpp [%/100]: STEMFS 2025:2 Bilaga 5
A190: Träbriketter eller träpellets av skottskog med kort omloppstid (poppel, med gödning – fall 2a), transportsträcka 1–500 km | G190: 0.3 | R190: 4.4 | S190: 12.7 | T190: 3.6 | U190: 0.69 | V190: 0.54 | AA190: Emissionsfaktor, Odling, Bearbetning, Transport och distribution [g CO2eq/MJ]: Delnormalvärden från STEMFS 2025:2 Bilaga 8, Normalvärde för minskningen av växthusgasutsläpp [%/100]: STEMFS 2025:2 Bilaga 5
A191: Träbriketter eller träpellets av skottskog med kort omloppstid (poppel, med gödning – fall 2a), transportsträcka 500–10 000 km | G191: 0.3 | R191: 4.4 | S191: 12.7 | T191: 5.3 | U191: 0.67 | V191: 0.5 | AA191: Emissionsfaktor, Odling, Bearbetning, Transport och distribution [g CO2eq/MJ]: Delnormalvärden från STEMFS 2025:2 Bilaga 8, Normalvärde för minskningen av växthusgasutsläpp [%/100]: STEMFS 2025:2 Bilaga 5
A192: Träbriketter eller träpellets av skottskog med kort omloppstid (poppel, med gödning – fall 2a), transportsträcka över 10 000 km | G192: 0.3 | R192: 4.4 | S192: 12.7 | T192: 9.8 | U192: 0.6 | V192: 0.41 | AA192: Emissionsfaktor, Odling, Bearbetning, Transport och distribution [g CO2eq/MJ]: Delnormalvärden från STEMFS 2025:2 Bilaga 8, Normalvärde för minskningen av växthusgasutsläpp [%/100]: STEMFS 2025:2 Bilaga 5
A193: Träbriketter eller träpellets av skottskog med kort omloppstid (poppel, med gödning – fall 3a), transportsträcka 1–500 km | G193: 0.3 | R193: 4.6 | S193: 0.4 | T193: 3.6 | U193: 0.87 | V193: 0.81 | AA193: Emissionsfaktor, Odling, Bearbetning, Transport och distribution [g CO2eq/MJ]: Delnormalvärden från STEMFS 2025:2 Bilaga 8, Normalvärde för minskningen av växthusgasutsläpp [%/100]: STEMFS 2025:2 Bilaga 5
A194: Träbriketter eller träpellets av skottskog med kort omloppstid (poppel, med gödning – fall 3a), transportsträcka 500–10 000 km | G194: 0.3 | R194: 4.6 | S194: 0.4 | T194: 5.3 | U194: 0.84 | V194: 0.77 | AA194: Emissionsfaktor, Odling, Bearbetning, Transport och distribution [g CO2eq/MJ]: Delnormalvärden från STEMFS 2025:2 Bilaga 8, Normalvärde för minskningen av växthusgasutsläpp [%/100]: STEMFS 2025:2 Bilaga 5
A195: Träbriketter eller träpellets av skottskog med kort omloppstid (poppel, med gödning – fall 3a), transportsträcka över 10 000 km | G195: 0.3 | R195: 4.6 | S195: 0.4 | T195: 9.8 | U195: 0.78 | V195: 0.67 | AA195: Emissionsfaktor, Odling, Bearbetning, Transport och distribution [g CO2eq/MJ]: Delnormalvärden från STEMFS 2025:2 Bilaga 8, Normalvärde för minskningen av växthusgasutsläpp [%/100]: STEMFS 2025:2 Bilaga 5
A196: Träbriketter eller träpellets av skottskog med kort omloppstid (poppel, utan gödning – fall 1), transportsträcka 1–500 km | G196: 0.3 | R196: 2 | S196: 29.4 | T196: 3.5 | U196: 0.48 | V196: 0.23 | AA196: Emissionsfaktor, Odling, Bearbetning, Transport och distribution [g CO2eq/MJ]: Delnormalvärden från STEMFS 2025:2 Bilaga 8, Normalvärde för minskningen av växthusgasutsläpp [%/100]: STEMFS 2025:2 Bilaga 5
A197: Träbriketter eller träpellets av skottskog med kort omloppstid (poppel, utan gödning – fall 1), transportsträcka 500–10 000 km | G197: 0.3 | R197: 2 | S197: 29.4 | T197: 5.2 | U197: 0.46 | V197: 0.2 | AA197: Emissionsfaktor, Odling, Bearbetning, Transport och distribution [g CO2eq/MJ]: Delnormalvärden från STEMFS 2025:2 Bilaga 8, Normalvärde för minskningen av växthusgasutsläpp [%/100]: STEMFS 2025:2 Bilaga 5
A198: Träbriketter eller träpellets av skottskog med kort omloppstid (poppel, utan gödning – fall 1), transportsträcka över 10 000 km | G198: 0.3 | R198: 2 | S198: 29.4 | T198: 9.5 | U198: 0.4 | V198: 0.1 | AA198: Emissionsfaktor, Odling, Bearbetning, Transport och distribution [g CO2eq/MJ]: Delnormalvärden från STEMFS 2025:2 Bilaga 8, Normalvärde för minskningen av växthusgasutsläpp [%/100]: STEMFS 2025:2 Bilaga 5
A199: Träbriketter eller träpellets av skottskog med kort omloppstid (poppel, utan gödning – fall 2a), transportsträcka 1–500 km | G199: 0.3 | R199: 2.5 | S199: 12.7 | T199: 3.6 | U199: 0.72 | V199: 0.58 | AA199: Emissionsfaktor, Odling, Bearbetning, Transport och distribution [g CO2eq/MJ]: Delnormalvärden från STEMFS 2025:2 Bilaga 8, Normalvärde för minskningen av växthusgasutsläpp [%/100]: STEMFS 2025:2 Bilaga 5
A200: Träbriketter eller träpellets av skottskog med kort omloppstid (poppel, utan gödning – fall 2a), transportsträcka 500–10 000 km | G200: 0.3 | R200: 2.5 | S200: 12.7 | T200: 5.3 | U200: 0.69 | V200: 0.54 | AA200: Emissionsfaktor, Odling, Bearbetning, Transport och distribution [g CO2eq/MJ]: Delnormalvärden från STEMFS 2025:2 Bilaga 8, Normalvärde för minskningen av växthusgasutsläpp [%/100]: STEMFS 2025:2 Bilaga 5
... 130 more rows

Sheet Fördjupning med ekvationer
S1: =versionsnummer -> v1.1
A2: Fördjupning
A3: Bakomliggande ekvationer till respektive beräkning
A4: Utsläpp vid bearbetning
A24: Utsläpp vid lagring
A35: Energiförlust för lagrat bränsle [MJ/mån] bygger på bortledd värme från cisternen där biobränslet lagras. Cisternen antas vara halvfylld. Endast beräkning för vald omfattning.
A38: Utsläpp vid sjötransporter
A53: Deplacement = vikt av lastat skepp inklusive allt (fartygets vikt, last, bränsle etc).
A56: Utsläpp vid landtransporter
